{"text_format":"1","workbook":"xlsx","n_sheets":7,"sheets":["CHOICES","SELECTOR","TRADE NAMES","NOTES","WEED STAGE TABLES","TRADE NAMES PRINT","VERSION"],"not_rendered":{"charts":0,"images":8,"macros":1,"external_links":0,"defined_names":5,"comments":0,"pivot_tables":0},"unopened":[],"bounds":{"document_bytes":16777216,"sheet_cells":100000,"rows_first":2000,"rows_last":500,"rows_between":2000,"halvings":0,"cell_chars":16384,"cell_head_chars":4096},"cells_cut":0,"cells_raw":0,"read":"whole","date_system":"1900"}

{"sheet":"CHOICES","index":0,"n_rows":29,"n_cols":5,"rows_kept":29,"cut":false,"hidden":false,"merged":[[1,1,2,3],[18,2,18,3],[29,2,29,3],[27,1,27,3],[28,1,28,3],[13,2,13,3],[14,2,14,3],[15,2,15,3],[16,2,16,3],[17,2,17,3],[12,2,12,3],[4,2,4,3],[3,2,3,3],[8,2,8,3],[11,2,11,3],[9,2,10,3],[5,2,5,3],[6,2,6,3],[7,2,7,3],[31,2,31,3],[30,2,30,3],[21,2,21,3],[19,2,19,3],[25,1,25,2],[20,2,20,3],[12,1,19,1],[26,1,26,3]]}
[]
[null,"HERBICIDE SELECTOR"]
[]
[null,"WEED GROWTH STAGE","Select weed growth stage"]
[null,null,null,null,4]
[]
[]
[]
[]
[]
[]
[null,"TYPE OF WEED","Select the weed type(s)"]
[null,"\nSuggested treatments will be limited to those chemicals that apply to the full combination of selected weed types.\n\nTo view more comprehensive lists, select fewer weed types.",null,null,true]
[null,null,null,null,true]
[null,null,null,null,true]
[null,null,null,null,false]
[null,null,null,null,false]
[null,null,null,null,false]
[null,null,null,null,false]
[null,null,"Note: Selecting CANE STOOL ERADICATION/FALLOW FIELD CLEAN-UP will ignore options selected in the WEED GROWTH STAGE section above.\n",null,false]
[null,null,"\n"]
[null,"OTHER","Select from list…"]
[null,"SOIL","SOIL CLAY %","16-20"]
[null,"CROP","PLANT or RATOON?","PLANT"]
[null,null,null,null,0]
[]
[null,"HERBICIDE SELECTOR VERSION 1.0 \nDECEMBER 2018\n© SASRI"]
[null,"DISCLAIMER"]
[null,"All copyright and other intellectual property rights subsisting in this work , including without limitation all text, images and graphics contained in this work (collectively, the \"Contents\") are owned by the South African Sugar Association (‘the Owner’). Neither this work nor any of its Contents may be shared, modified or copied in whole or part in any form, or be used to create any derivative work without the owner’s prior written permission. Whilst every effort has been made to ensure that the information contained in this work is accurate, the owner makes no representation, warranty or guarantee relating to the information contained in this work. The use of this work is at your own risk and neither the Owner nor its consultants or staff can be held liable for any loss or damage, whether direct or indirect, caused by the reliance on the information contained in this work. The use of proprietary names should not be considered as an endorsement for their use."]

{"sheet":"SELECTOR","index":1,"n_rows":98,"n_cols":34,"rows_kept":98,"cut":false,"hidden":false,"merged":[[0,15,0,22]]}
["treatment nr","STAGE","CLAY %","soil moisture","BL","GRASS","UBABE","ROT","SOR","YWG","PWG","knockdown control","CSCE","CROP","GRANULE","TREATMENT\n\nSelect an Active Ingredient below to view commercially available products.",null,null,null,null,null,null,null,"RATE","WEEKS\nCONTROL","0-5","6-10","11-15","16-20","21-25","26-30","31-35","> 35",1]
["1","PRE-EMERGENCE",{"$f":"ClaySel","v":"16-20"},"3","BL",null,null,null,null,null,null,null,null,null,"XGRAN","MCPA",null,null,null,null,null,null,null,{"$f":"HLOOKUP(C2,HerbRates,AH2,FALSE)","v":7},5,6.25,6.25,7,7,7.5,8,8.75,8.75,2]
["2","PRE-EMERGENCE","16-20","2",null,"GR",null,null,"SOR","YWG","PWG",null,null,"PLANT CROP ONLY","XGRAN","EPTC",null,null,null,null,null,null,null,5,8,3,3,3,5,5,5,7,7,3]
["3","PRE-EMERGENCE","16-20","5","BL","GR","UB",null,null,"YWG",null,null,null,null,"XGRAN","Alachlor","+","MCPA",null,null,null,null,null,4,8,4,4,4,4,4,4,4,4,4]
["5","PRE-EMERGENCE","16-20","5","BL","GR","UB",null,null,"YWG",null,null,null,null,"XGRAN","Alachlor","+","Atrazine",null,null,null,null,null,2,8,2,2,2,2,2,2,2,3,5]
["165","PRE-EMERGENCE","16-20","5","BL","GR","UB",null,null,"YWG",null,null,null,null,"XGRAN","Alachlor","+","Diuron",null,null,null,null,null,2,8,2,2,2,2,2.5,2.5,3,4,6]
["166","PRE-EMERGENCE","16-20","5","BL","GR","UB",null,null,"YWG",null,null,null,null,"XGRAN","Alachlor","+","Ametryn",null,null,null,null,null,2.5,8,2,2,2,2.5,2.8,3,3,3,7]
["8","PRE-EMERGENCE","16-20","2","BL","GR","UB",null,null,"YWG","PWG",null,null,null,"GRAN","Chlorimuron ethyl","+","Metribuzin",null,"See Combo",null,null,null,0.8,12,"X",0.8,0.8,0.8,0.9,0.9,0.9,1.2,8]
["9","PRE-EMERGENCE","16-20","1","BL","GR","UB","ROT",null,"YWG","PWG",null,null,null,"GRAN","Pendimethalin","+","Metribuzin","+","Chlorimuron ethyl",null,"See Combo",null,"X",12,"X","X","X","X","1.2","1.2","1.2","1.2",9]
["10","PRE-EMERGENCE","16-20","1","BL","GR","UB","ROT",null,"YWG",null,null,null,null,"GRAN","Pendimethalin","+","Amicarbazone",null,null,null,null,null,"X",12,"X","X","X","X",1,1.5,1.5,1.5,10]
["11","PRE-EMERGENCE","16-20","1","BL","GR","UB","ROT",null,null,null,null,null,null,"XGRAN","Diuron","+","Pendimethalin",null,null,null,null,null,"X",12,"X","X","X","X","2.5","2.5","2.5","2.5",11]
["12","PRE-EMERGENCE","16-20","1","BL","GR","UB","ROT",null,null,null,null,null,null,"XGRAN","Pendimethalin",null,null,null,null,null,null,null,"X",12,"X","X","X","X","4.4","4.4","4.4","4.4",12]
["13","PRE-EMERGENCE","16-20","6","BL","GR","UB",null,null,"YWG",null,null,null,null,"XGRAN","Metazachlor","+","Diuron",null,null,null,null,null,"3",9,"X","X","3","3","3","3","3","3",13]
["14","PRE-EMERGENCE","16-20","6","BL","GR","UB",null,null,"YWG",null,null,null,null,"XGRAN","Metazachlor","+","Atrazine",null,null,null,null,null,2,9,"X","X",2,2,2,2,2,3,14]
["15","PRE-EMERGENCE","16-20","7","BL","GR",null,null,null,null,null,null,null,null,"XGRAN","Mesotrione","+","S-metolachlor","+","Terbuthylazine",null,"See Combo",null,5,10,4,4,4,5,5,5,5,5,15]
["19","PRE-EMERGENCE","16-20","6","BL","GR","UB",null,null,"YWG",null,null,null,null,"XGRAN","Acetochlor","+","Atrazine",null,null,null,null,null,2,9,2,2,2,2,2,3,4,5,16]
["23","PRE-EMERGENCE","16-20","6","BL","GR","UB",null,null,"YWG",null,null,null,null,"XGRAN","Acetochlor","+","Diuron",null,null,null,null,null,3,9,3,3,3,3,3,3,3,3,17]
["29","PRE-EMERGENCE","16-20","6","BL","GR","UB",null,null,"YWG",null,null,null,null,"XGRAN","Acetochlor","+","Ametryn",null,"See Combo",null,null,null,5,9,5,5,5,5,6,6,6,6,18]
["30","PRE-EMERGENCE","16-20","11","BL","GR","UB",null,null,"YWG",null,null,null,null,"XGRAN","Saflufenacil  ","+","Dimethenamid-P",null,"See Combo",null,null,null,1.5,10,1.5,1.5,1.5,1.5,1.5,1.5,1.5,1.5,19]
["31","PRE-EMERGENCE","16-20","3","BL","GR","UB",null,null,"YWG",null,null,null,"RATOON CROP ONLY","GRAN","Amicarbazone","+","Acetochlor",null,null,null,null,null,2,14,"X","X",2,2,2,2,2,2,20]
["35","PRE-EMERGENCE","16-20",4,"BL","GR","UB",null,null,"YWG",null,null,null,null,null,"Metribuzin","+","Diuron",null,"See Combo",null,null,null,1.8,12,"X",1.4,1.6,1.8,2,2,2,"X",21]
["36","PRE-EMERGENCE",{"$f":"ClaySel","v":"16-20"},6,"BL","GR","UB",null,"SOR","YWG",null,null,null,null,"XGRAN","S-metolachlor","+","Ametryn",null,null,null,null,null,2.8,9,2,2,2.5,2.8,3,3,3,3,22]
["37","PRE-EMERGENCE","16-20",6,"BL","GR","UB",null,"SOR","YWG",null,null,null,"RATOON CROP ONLY","GRAN","S-metolachlor","+","Hexazinone",null,null,null,null,null,0.7,12,"X",0.6,0.6,0.7,0.7,0.7,0.7,0.8,23]
["38","PRE-EMERGENCE","16-20",6,"BL","GR","UB",null,null,"YWG",null,null,null,null,"XGRAN","Metolachlor","+","Ametryn",null,null,null,null,null,2.8,9,2,2,2.5,2.8,3,3,3,3,24]
["39","PRE-EMERGENCE","16-20",6,"BL","GR","UB",null,null,"YWG",null,null,null,null,"XGRAN","Tebuthiuron","+","Acetochlor",null,null,null,null,null,2,12,"X","X",2,2,2,2,2.5,2.5,25]
["40","PRE-EMERGENCE","16-20",4,"BL","GR","UB",null,null,null,null,null,null,null,null,"Tebuthiuron","+","Diuron",null,null,null,null,null,2,12,"X","X",2,2,2,2,2.5,2.5,26]
["43","PRE-EMERGENCE","16-20",9,"BL","GR","UB",null,null,null,null,null,null,null,null,"Tebuthiuron","+","Ametryn",null,null,null,null,null,1.24,12,"X","X",1.24,1.24,1.24,1.24,1.58,1.58,27]
["44","PRE-EMERGENCE","16-20","4","BL","GR","UB",null,null,"YWG",null,null,null,null,"GRAN","Sulfentrazone",null,null,null,null,null,null,null,"X",12,"X","X","X","X",1.2,1.2,1.2,1.2,28]
["45","PRE-EMERGENCE","16-20","10","BL","GR","UB",null,null,null,null,null,null,"RATOON CROP ONLY",null,"Hexazinone",null,null,null,null,null,null,null,0,12,null,null,null,null,null,null,null,null,29]
["50","PRE-EMERGENCE","16-20","9","BL","GR","UB",null,null,null,null,null,null,"RATOON CROP ONLY","GRAN","Hexazinone","+","Diuron",null,"See Combo",null,null,null,3,12,"X",3,3,3,3,3,3,3,30]
["51","PRE-EMERGENCE","16-20","4","BL","GR","UB",null,null,null,null,null,null,"RATOON CROP ONLY","GRAN","Isoxaflutole","+","Diuron",null,null,null,null,null,0.15,14,"X","X",0.1,0.15,0.15,0.2,0.2,0.25,31]
["52","PRE-EMERGENCE","16-20","10","BL","GR","UB",null,null,null,null,null,null,"RATOON CROP ONLY","GRAN","Isoxaflutole","+","Hexazinone",null,null,null,null,null,0.15,14,"X","X",0.1,0.15,0.15,0.2,0.2,0.25,32]
["53","PRE-EMERGENCE","16-20","10","BL","GR","UB",null,null,null,null,null,null,"RATOON CROP ONLY","GRAN","Isoxaflutole","+","Ametryn",null,null,null,null,null,0.15,14,"X","X",0.1,0.15,0.15,0.2,0.2,0.25,33]
["54","PRE-EMERGENCE","16-20","10","BL","GR","UB",null,null,"YWG",null,null,null,"RATOON CROP ONLY","GRAN","Amicarbazone","+","Hexazinone",null,null,null,null,null,{"$f":"HLOOKUP(C34,HerbRates,AH34,FALSE)","v":1.5},14,"X","X",1.5,1.5,1.5,1.5,1.5,1.5,34]
["55","PRE-EMERGENCE","16-20","11","BL","GR",null,null,null,"YWG",null,null,null,"RATOON CROP ONLY","GRAN","Amicarbazone","+","Isoxaflutole",null,null,null,null,null,1,14,"X","X",1,1,1,1.5,1.5,1.5,35]
["56","PRE-EMERGENCE","16-20","11","BL","GR","UB","ROT","SOR","YWG",null,null,null,"RATOON CROP ONLY","GRAN","Amicarbazone","+","Hexazinone","+","Clomazone",null,"See Combo",null,1,16,"X","X",1,1,1,1.5,1.5,1.5,36]
["57","PRE-EMERGENCE","16-20","11","BL","GR","UB","ROT",null,null,null,null,null,"RATOON CROP ONLY","XGRAN","Isoxaflutole","+","Indaziflam",null,"See Combo",null,null,null,"0.333",null,"X","X","0.333","0.333","0.333","0.333","0.333","0.333",37]
["58","EARLY POST-EMERGENCE",{"$f":"ClaySel","v":"16-20"},"5","BL","GR","UB",null,null,"YWG",null,null,null,null,"XGRAN","Alachlor","+","Atrazine","+","Paraquat",null,null,null,2,8,2,2,2,2,2,2,2,3,38]
["60","EARLY POST-EMERGENCE","16-20","5","BL","GR","UB",null,null,"YWG",null,null,null,null,"XGRAN","Alachlor","+","Ametryn","+","Paraquat",null,null,null,4,8,3,3,3,4,4,5,5,5,39]
["61","EARLY POST-EMERGENCE","16-20","5","BL","GR","UB",null,null,"YWG",null,null,null,null,"XGRAN","Alachlor","+","Diuron","+","Paraquat",null,"See Combo",null,2.8,8,2.5,2.5,2.8,2.8,2.8,3,3,3,40]
["62","EARLY POST-EMERGENCE","16-20","5","BL","GR","UB",null,null,"YWG",null,null,null,null,"XGRAN","Alachlor","+","Ametryn",null,null,null,null,null,6,8,6,6,6,6,6,6,6,6,41]
["65","EARLY POST-EMERGENCE","16-20","2","BL","GR","UB",null,null,"YWG",null,null,null,null,"GRAN","Chlorimuron ethyl","+","Metribuzin",null,"See Combo",null,null,null,0.8,12,"X",0.8,0.8,0.8,0.9,0.9,0.9,1.2,42]
["68","EARLY POST-EMERGENCE","16-20","6","BL","GR","UB",null,null,"YWG",null,null,null,null,"XGRAN","Acetochlor","+","Ametryn",null,"See Combo",null,null,null,6,9,6,6,6,6,6,6,6,6,43]
["73","EARLY POST-EMERGENCE",{"$f":"ClaySel","v":"16-20"},"6","BL","GR","UB",null,null,"YWG",null,null,null,null,"XGRAN","Acetochlor","+","Ametryn","+","Paraquat",null,"See Combo",null,4,9,3,3,3,4,4.5,5,5,5,44]
["78","EARLY POST-EMERGENCE","16-20","3","BL","GR","UB",null,null,"YWG",null,null,null,"RATOON CROP ONLY","GRAN","Amicarbazone","+","Acetochlor","+","Paraquat",null,null,null,2,14,"X","X",2,2,2,2,2,2,45]
["79","EARLY POST-EMERGENCE","16-20",6,"BL","GR","UB",null,null,"YWG",null,null,null,null,"XGRAN","S-metolachlor","+","Diuron","+","Paraquat",null,"See Combo",null,2.1,8,2,2,2,2.1,2.2999999999999998,2.5,2.5,2.5,46]
["80","EARLY POST-EMERGENCE","16-20",6,"BL","GR","UB",null,null,"YWG",null,null,null,null,"XGRAN","Metolachlor","+","Diuron","+","Paraquat",null,"See Combo",null,2.1,8,2,2,2,2.1,2.2999999999999998,2.5,2.5,2.5,47]
["81","EARLY POST-EMERGENCE","16-20",6,"BL","GR","UB",null,null,"YWG",null,null,null,null,"XGRAN","S-metolachlor","+","Metribuzin","+","Paraquat",null,null,null,2,12,"X",2,2,2,2,2,2,"X",48]
["82","EARLY POST-EMERGENCE","16-20",4,"BL","GR","UB",null,null,"YWG",null,null,null,null,"XGRAN","Metolachlor","+","Metribuzin","+","Paraquat",null,null,null,2,12,"X",2,2,2,2,2,2,"X",49]
["83","EARLY POST-EMERGENCE","16-20",7,"BL","GR","UB",null,null,"YWG",null,null,null,null,"XGRAN","S-metolachlor","+","Ametryn","+","MCPA",null,null,null,5,9,5,5,5,5,5,5,5,5,50]
["84","EARLY POST-EMERGENCE","16-20",7,"BL","GR","UB",null,null,"YWG",null,null,null,null,"XGRAN","Metolachlor","+","Ametryn","+","MCPA",null,null,null,5,9,5,5,5,5,5,5,5,5,51]
["85","EARLY POST-EMERGENCE","16-20",7,"BL","GR","UB",null,null,"YWG",null,null,null,null,"XGRAN","S-metolachlor","+","Ametryn","+","Paraquat",null,null,null,2.5,9,2,2,2.5,2.5,3,3,3,3,52]
["86","EARLY POST-EMERGENCE","16-20",7,"BL","GR","UB",null,null,"YWG",null,null,null,null,"XGRAN","Metolachlor","+","Ametryn","+","Paraquat",null,null,null,2.5,9,2,2,2.5,2.5,3,3,3,3,53]
["87","EARLY POST-EMERGENCE","16-20",7,"BL","GR","UB",null,null,"YWG",null,null,null,null,"XGRAN","S-metolachlor","+","Ametryn",null,null,null,null,null,6,9,6,6,6,6,6,6,6,6,54]
["88","EARLY POST-EMERGENCE","16-20",7,"BL","GR","UB",null,null,"YWG",null,null,null,null,"XGRAN","Metolachlor","+","Ametryn",null,null,null,null,null,6,9,6,6,6,6,6,6,6,6,55]
["89","EARLY POST-EMERGENCE",{"$f":"ClaySel","v":"16-20"},"3","BL","GR",null,null,null,"YWG",null,null,null,null,"XGRAN","Sulcotrione  ","+","Atrazine",null,"See Combo",null,null,null,2,8,1.6,1.6,1.6,2,3,3.4,3.6,3.6,56]
["90","EARLY POST-EMERGENCE","16-20","6","BL","GR","UB",null,null,"YWG",null,null,null,"PLANT CROP ONLY","XGRAN","Metazachlor","+","Diuron","+","Paraquat",null,"See Combo",null,3,9,"X","X",3,3,3,3,3,3,57]
["91","EARLY POST-EMERGENCE","16-20","6","BL","GR","UB",null,null,"YWG",null,null,null,null,"XGRAN","Metazachlor","+","Ametryn","+","Paraquat",null,null,null,4,9,"X","X",3,4,5,5.5,6,6,58]
["93","EARLY POST-EMERGENCE","16-20","7","BL","GR","UB",null,null,"YWG",null,null,null,null,"XGRAN","Mesotrione","+","S-metolachlor","+","Terbuthylazine ","+","Paraquat","See Combo",5,10,4,4,4,5,5,5,5,5,59]
["94","EARLY POST-EMERGENCE","16-20","4","BL","GR",null,null,null,"YWG",null,null,null,null,"XGRAN","Mesotrione","+","S-metolachlor","+","Diuron",null,null,null,0.52,"4-8",0.52,0.52,0.52,0.52,0.52,0.52,0.52,0.52,60]
["95","EARLY POST-EMERGENCE","16-20",4,"BL","GR","UB",null,null,"YWG",null,null,null,null,null,"Metribuzin","+","Diuron","+","Paraquat",null,"See Combo","See Combo",2.9,12,"X",2,2.5,2.9,2.9,2.9,2.9,"X",61]
["99","EARLY POST-EMERGENCE","16-20",4,"BL","GR","UB",null,null,"YWG",null,null,null,null,null,"Metribuzin","+","Ametryn","+","Paraquat",null,null,null,2.9,12,"X",2,2.5,2.9,2.9,2.9,2.9,"X",62]
["102","EARLY POST-EMERGENCE","16-20",6,"BL","GR",null,null,null,"YWG",null,null,null,null,"XGRAN","Tebuthiuron","+","Acetochlor",null,null,null,null,null,2,12,"X","X",2,2,2,2,2.5,2.5,63]
["103","EARLY POST-EMERGENCE","16-20",4,"BL","GR","UB",null,null,null,null,null,null,null,null,"Tebuthiuron","+","Diuron",null,null,null,null,null,2,12,"X","X",2,2,2,2,2.5,2.5,64]
["105","EARLY POST-EMERGENCE","16-20",9,"BL","GR","UB",null,null,null,null,null,null,null,null,"Tebuthiuron","+","Ametryn",null,null,null,null,null,2,12,"X","X",2,2,2,2,2.5,2.5,65]
["107","EARLY POST-EMERGENCE","16-20","9","BL","GR","UB",null,null,"YWG",null,null,null,"RATOON CROP ONLY",null,"Hexazinone","+","Diuron",null,"See Combo",null,null,null,{"$f":"HLOOKUP(C66,HerbRates,AH66,FALSE)","v":1.2},12,"X",1,1,1.2,1.3,1.5,1.5,2,66]
["109","EARLY POST-EMERGENCE","16-20","9","BL","GR","UB",null,null,"YWG",null,null,null,"RATOON CROP ONLY","GRAN","Hexazinone",null,null,null,null,null,null,null,0,12,"various",null,null,null,null,null,null,null,67]
["113","EARLY POST-EMERGENCE",{"$f":"ClaySel","v":"16-20"},"10","BL","GR","UB",null,null,"YWG",null,null,null,"RATOON CROP ONLY","XGRAN","Hexazinone","+","Ametryn",null,null,null,null,null,4,12,"X",3,3,4,4,4,4,4,68]
["115","EARLY POST-EMERGENCE","16-20","10","BL","GR","UB",null,null,null,null,null,null,"RATOON CROP ONLY","GRAN","Isoxaflutole","+","Paraquat",null,null,null,null,null,0.15,14,"X","X",0.1,0.15,0.15,0.2,0.2,0.25,69]
["116","EARLY POST-EMERGENCE","16-20","10","BL","GR","UB",null,null,"YWG",null,null,null,"RATOON CROP ONLY","GRAN","Amicarbazone","+","Hexazinone","+","Paraquat",null,null,null,1.5,14,"X","X",1.5,1.5,1.5,1.5,1.5,1.5,70]
["117","POST-EMERGENCE","16-20",4,"BL","GR","UB",null,null,"YWG",null,null,null,null,"XGRAN","Ametryn","+","Metribuzin",null,null,null,null,null,3,12,"X",3,3,3,3,3,3,"X",71]
["118","POST-EMERGENCE","16-20",4,"BL","GR","UB",null,null,null,null,null,null,null,"GRAN","Glufosinate ammonium","+","Diuron","+","Metribuzin",null,"See Combo",null,"1-2%",12,"X","1-2%","1-2%","1-2%","1-2%","1-2%","1-2%","X",72]
["119","POST-EMERGENCE","16-20",4,"BL","GR","UB",null,null,null,null,null,null,"RATOON CROP ONLY","GRAN","Glufosinate ammonium","+","Diuron","+","Hexazinone",null,"See Combo",null,"1-2%",12,"X","1-2%","1-2%","1-2%","1-2%","1-2%","1-2%","1-2%",73]
["120","POST-EMERGENCE","16-20",5,"BL",null,null,null,null,"YWG",null,null,null,"RATOON CROP ONLY","XGRAN","Amicarbazone","+","MCPA",null,null,null,null,null,1.5,12,"X","X",1.5,1.5,1.5,1.5,1.5,1.5,74]
["121","POST-EMERGENCE","16-20",5,"BL","GR","UB",null,null,"YWG",null,null,null,"RATOON CROP ONLY","XGRAN","Amicarbazone","+","Ametryn",null,null,null,null,null,1.5,12,"X","X",1.5,1.5,1.5,1.5,1.5,1.5,75]
["122","POST-EMERGENCE","16-20",5,"BL","GR",null,null,null,"YWG",null,null,null,"RATOON CROP ONLY","XGRAN","Amicarbazone","+","MCPA","+","Ametryn",null,null,null,1.5,12,"X","X",1.5,1.5,1.5,1.5,1.5,1.5,76]
["123","POST-EMERGENCE","16-20",4,"BL","GR","UB",null,null,null,null,null,null,null,"XGRAN","Isoxadifen-ethyl    ","+","Tembotrione","+","Atrazine",null,"See Combo",null,"1-2%",6,"1-2%","1-2%","1-2%","1-2%","1-2%","1-2%","1-2%","1-2%",77]
["124","POST-EMERGENCE","16-20",5,"BL",null,null,null,null,"YWG",null,null,null,null,"XGRAN","Diuron","+","MCPA",null,null,null,null,null,2.5,6,2.5,2.5,2.5,2.5,2.5,2.5,2.5,2.5,78]
["125","POST-EMERGENCE","16-20",7,"BL",null,null,null,null,"YWG","PWG",null,null,null,"GRAN","Mesotrione","+","Halosulfuron",null,null,null,null,null,"1-2%",6,"1-2%","1-2%","1-2%","1-2%","1-2%","1-2%","1-2%","1-2%",79]
["126","POST-EMERGENCE","16-20",7,null,null,null,null,null,"YWG","PWG",null,null,null,"GRAN","Halosulfuron",null,null,null,null,null,null,null,"1-2%",6,"1-2%","1-2%","1-2%","1-2%","1-2%","1-2%","1-2%","1-2%",80]
["127","POST-EMERGENCE","16-20",8,"BL","GR",null,null,null,null,null,null,null,null,"XGRAN","Ametryn",null,null,null,null,null,null,null,8,6,8,8,8,8,8,8,8,8,81]
["128","POST-EMERGENCE","16-20",5,"BL","GR",null,null,null,"YWG",null,null,null,null,"XGRAN","Ametryn","+","MCPA",null,null,null,null,null,5,6,5,5,5,5,5,5,5,5,82]
["129","POST-EMERGENCE","16-20",5,"BL","GR",null,null,null,null,null,null,null,null,"XGRAN","Ametryn","+","Paraquat",null,null,null,null,null,4,6,4,4,4,4,4,4,4,4,83]
["130","POST-EMERGENCE","16-20",5,"BL",null,null,null,null,null,null,null,null,null,"XGRAN","MCPA",null,null,null,null,null,null,null,7,5,6.25,6.25,6.5,7,8,8.75,8.75,8.75,84]
["131","POST-EMERGENCE","16-20",8,null,"GR","UB",null,null,"YWG","PWG",null,null,null,"XGRAN","MSMA",null,null,null,null,null,null,null,6,6,6,6,6,6,6,6,6,6,85]
["132","POST-EMERGENCE","16-20",7,"BL","GR","UB",null,null,"YWG","PWG",null,null,null,"XGRAN","Diuron","+","Paraquat",null,"See Combo",null,null,null,2.5,5,2.5,2.5,2.5,2.5,2.5,2.5,2.5,2.5,86]
["133","POST-EMERGENCE","16-20",8,"BL","GR",null,null,null,"YWG","PWG","KDC",null,null,"XGRAN","Paraquat",null,null,null,null,null,null,null,"1,5-3",4,"1,5-3","1,5-3","1,5-3","1,5-3","1,5-3","1,5-3","1,5-3","1,5-3",87]
["134","POST-EMERGENCE","16-20",8,"BL","GR","UB",null,null,"YWG","PWG","KDC",null,null,"XGRAN","Glufosinate ammonium",null,null,null,null,null,null,null,"1-2%",null,"1-2%","1-2%","1-2%","1-2%","1-2%","1-2%","1-2%","1-2%",88]
["135","LATE POST-EMERGENCE",{"$f":"ClaySel","v":"16-20"},8,"BL","GR",null,null,null,"YWG",null,null,null,null,"XGRAN","Diuron","+","Paraquat",null,"See Combo",null,null,null,2.5,5,2.5,2.5,2.5,2.5,2.5,2.5,2.5,2.5,89]
["136","LATE POST-EMERGENCE","16-20",8,"BL","GR","UB","ROT","SOR","YWG","PWG",null,null,null,"XGRAN","Diuron","+","MSMA",null,null,null,null,null,3,5,3,3,3,3,3,3,3,3,90]
["137","LATE POST-EMERGENCE","16-20",7,null,null,null,null,null,"YWG","PWG",null,null,null,"GRAN","Halosulfuron",null,null,null,null,null,null,null,"1-2%",6,"1-2%","1-2%","1-2%","1-2%","1-2%","1-2%","1-2%","1-2%",91]
["138","LATE POST-EMERGENCE","16-20",8,"BL","GR",null,null,null,"YWG","PWG","KDC",null,null,"XGRAN","Paraquat",null,null,null,null,null,null,null,"1.5-3",4,"1.5-3","1.5-3","1.5-3","1.5-3","1.5-3","1.5-3","1.5-3","1.5-3",92]
["139","LATE POST-EMERGENCE","16-20",8,null,"GR","UB",null,null,"YWG","PWG",null,null,null,"XGRAN","MSMA",null,null,null,null,null,null,null,6,4,6,6,6,6,6,6,6,6,93]
["140","LATE POST-EMERGENCE","16-20",8,"BL","GR","UB","ROT","SOR","YWG","PWG",null,null,null,"XGRAN","Ametryn","+","MSMA",null,null,null,null,null,4,5,4,4,4,4,4,4,4,4,94]
["141","LATE POST-EMERGENCE","16-20",8,"BL","GR","UB",null,null,"YWG","PWG","KDC",null,null,"XGRAN","Glufosinate ammonium",null,null,null,null,null,null,null,"1-2%",null,"1-2%","1-2%","1-2%","1-2%","1-2%","1-2%","1-2%","1-2%",95]
["160","X","16-20","9","BL","GR","UB",null,"SOR","YWG","PWG",null,"CSE",null,null,"Glyphosate",null,null,null,null,null,null,null,"1-2%",null,"1-2%","1-2%","1-2%","1-2%","1-2%","1-2%","1-2%","1-2%",96]
["162","X","16-20","9",null,"GR",null,null,null,null,null,null,"CSE",null,"XGRAN","Fluazifop-butyl",null,null,null,null,null,null,null,5,null,5,5,5,5,5,5,5,5,97]
[164,"X","16-20","9","BL","GR","UB",null,"SOR","YWG",null,null,"CSE",null,"XGRAN","Imazapyr",null,null,null,null,null,null,null,5.22,null,5.22,5.22,5.22,5.22,5.22,5.22,5.22,5.22,98]

{"sheet":"TRADE NAMES","index":2,"n_rows":310,"n_cols":8,"rows_kept":310,"cut":false,"hidden":false,"merged":[[293,1,293,6],[298,1,298,6],[303,1,303,6],[253,1,253,6],[261,1,261,6],[275,1,275,6],[282,1,282,6],[289,1,289,6],[249,1,249,6],[202,1,202,6],[208,1,208,6],[196,1,196,6],[2,1,2,6],[17,1,17,6],[26,1,26,6],[32,1,32,6],[40,1,40,6],[47,1,47,6],[57,1,57,6],[62,1,62,6],[78,1,78,6],[133,1,133,6],[141,1,141,6],[157,1,157,6],[101,1,101,6],[1,1,1,6],[226,1,226,6],[232,1,232,6],[244,1,244,6],[161,1,161,6],[87,1,87,6],[94,1,94,6],[168,1,168,6],[172,1,172,6],[176,1,176,6],[184,1,184,6],[188,1,188,6],[218,1,218,6]]}
[]
[]
[null,"ACETOCHLOR",null,null,null,null,null,"SEE NOTES"]
[null,"TRADE NAME","AI STRENGTH","UNIT","FORMULATION","LABEL BAND","HRAC GROUP"]
[null,"Acetochlor 700 EC",700,"g/litre","(EC)","Blue","K3"]
[null,"Wenner",700,"g/litre","(EC)","Blue","K3"]
[null,"Guardian S",840,"g/litre","(EC)","Blue","K3"]
[null,"Leap 840 EC",840,"g/litre","(EC)","Blue","K3"]
[null,"Premium 840 EC",840,"g/litre","(EC)","Blue","K3"]
[null,"Acetak EC",900,"g/litre","(EC)","Blue","K3"]
[null,"Acetochlor 900 EC",900,"g/litre","(EC)","Blue","K3"]
[null,"Arysta Acetochlor",900,"g/litre","(EC)","Blue","K3"]
[null,"GAP Acetochlor 900",900,"g/litre","(EC)","Blue","K3"]
[null,"Premium 900 EC",900,"g/litre","(EC)","Blue","K3"]
[null,"Relay Super",900,"g/litre","(EC)","Blue","K3"]
[null,"Kestrel",960,"g/litre","(EC)","Blue","K3"]
[]
[null,"ALACHLOR",null,null,null,null,null,"SEE NOTES"]
[null,"TRADE NAME","AI STRENGTH","UNIT","FORMULATION","LABEL BAND","HRAC GROUP"]
[null,"Alachlor",384,"g/litre","(EC)","Yellow","K3"]
[null,"Lasso EC",384,"g/litre","(EC)","Yellow","K3"]
[null,"Arysta Alachlor",384,"g/litre","(EC)","Yellow","K3"]
[null,"GAP Alachlor",384,"g/litre","(EC)","Yellow","K3"]
[null,"Alachlor EC",384,"g/litre","(EC)","Yellow","K3"]
[null,"Villa-klor 480 CS",480,"g/litre","(CS)","Yellow","K3"]
[]
[null,"ACETOCHLOR + AMETRYN",null,null,null,null,null,"SEE NOTES"]
[null,"TRADE NAME","AI STRENGTH","UNIT","FORMULATION","LABEL BAND","HRAC GROUP"]
[null,"Squash EC","350+200","g/litre","(EC)","Yellow","K3 + C1"]
[null,"Acetamet 700 SC","450+250","g/litre","(SC)","Yellow","K3 + C1"]
[null,"Assault 700 SC","450+250","g/litre","(SC)","Yellow","K3 + C1"]
[]
[null,"AMETRYN",null,null,null,null,null,"SEE NOTES"]
[null,"TRADE NAME","AI STRENGTH","UNIT","FORMULATION","LABEL BAND","HRAC GROUP"]
[null,"Ametryn 500 SC",500,"g/litre","(SC)","Yellow","C1"]
[null,"GAP Ametryn",500,"g/litre","(SC)","Yellow","C1"]
[null,"Anaconda",500,"g/litre","(SC)","Yellow","C1"]
[null,"Arysta Ametryn",500,"g/litre","(SC)","Yellow","C1"]
[null,"Ametrex 500 SC",500,"g/litre","(SC)","Yellow","C1"]
[]
[null,"AMICARBAZONE",null,null,null,null,null,"SEE NOTES"]
[null,"TRADE NAME","AI STRENGTH","UNIT","FORMULATION","LABEL BAND","HRAC GROUP"]
[null,"Dinamic 700 WG",700,"g/kg","(WDG)","Blue","C1"]
[null,"Farmazone 700 WG",700,"g/kg","(WDG)","Blue","C1"]
[null,"Direction 700 WDG",700,"g/kg","(WDG)","Blue","C1"]
[null,"Discipline 700 WDG",700,"g/kg","(WDG)","Blue","C1"]
[]
[null,"ATRAZINE",null,null,null,null,null,"SEE NOTES"]
[null,"TRADE NAME","AI STRENGTH","UNIT","FORMULATION","LABEL BAND","HRAC GROUP"]
[null,"Atrazine 900 WG",900,"g/kg","(WDG)","Yellow","C1"]
[null,"Arysta Atrazine 900",900,"g/kg","(WDG)","Yellow","C1"]
[null,"Agrizine 500 SC",500,"g/litre","(SC)","Yellow","C1"]
[null,"GAP Atrazine",500,"g/litre","(SC)","Yellow","C1"]
[null,"Atrazine SC",500,"g/litre","(SC)","Yellow","C1"]
[null,"Atraflo 500 SC",500,"g/litre","(SC)","Yellow","C1"]
[null,"Arysta Atrazine 500",500,"g/litre","(SC)","Yellow","C1"]
[]
[null,"CHLORIMURON-ETHYL",null,null,null,null,null,"SEE NOTES"]
[null,"TRADE NAME","AI STRENGTH","UNIT","FORMULATION","LABEL BAND","HRAC GROUP"]
[null,"Elegance Super 750 WDG",750,"g/kg","(WDG)","Blue","B"]
[null,"Style 750 WDG",750,"g/kg","(WDG)","Blue","B"]
[]
[null,"DIURON",null,null,null,null,null,"SEE NOTES"]
[null,"TRADE NAME","AI STRENGTH","UNIT","FORMULATION","LABEL BAND","HRAC GROUP"]
[null,"Aventis Diuron Flo",800,"g/litre","(SC)","Green","C2"]
[null,"Diuron 800 SC",800,"g/litre","(SC)","Green","C2"]
[null,"Arysta Diuron",800,"g/litre","(SC)","Green","C2"]
[null,"GAP Diuron",800,"g/litre","(SC)","Green","C2"]
[null,"Diablo",800,"g/litre","(SC)","Green","C2"]
[null,"Cention",800,"g/litre","(SC)","Green","C2"]
[null,"Diurex 800 SC",800,"g/litre","(SC)","Green","C2"]
[null,"Farmag Diuron 800",800,"g/kg","(WDG)","Green","C2"]
[null,"Diron 800 WG",800,"g/kg","(WDG)","Green","C2"]
[null,"Develop 800 WDG",800,"g/kg","(WDG)","Green","C2"]
[null,"Extend 800 WDG",800,"g/kg","(WDG)","Green","C2"]
[null,"Diuron 80 WG",800,"g/kg","(WDG)","Green","C2"]
[null,"Karmex",800,"g/kg","(WDG)","Green","C2"]
[]
[null,"EPTC",null,null,null,null,null,"SEE NOTES"]
[null,"TRADE NAME","AI STRENGTH","UNIT","FORMULATION","LABEL BAND","HRAC GROUP"]
[null,"Eptam Super",720,"g/litre","(EC)","Yellow","N"]
[null,"EPTC Plus",720,"g/litre","(EC)","Yellow","N"]
[null,"Eptam Plus",720,"g/litre","(EC)","Yellow","N"]
[null,"EPTC Super 720 EC",720,"g/litre","(EC)","Yellow","N"]
[null,"Esculentus 720 EC",720,"g/litre","(EC)","Yellow","N"]
[null,"EPTC S EC",720,"g/litre","(EC)","Yellow","N"]
[]
[null,"FLUAZIFOP-BUTYL",null,null,null,null,null,"SEE NOTES"]
[null,"TRADE NAME","AI STRENGTH","UNIT","FORMULATION","LABEL BAND","HRAC GROUP"]
[null,"Volley 125",125,"g/litre","(EC)","Yellow","A"]
[null,"Fluzie",125,"g/litre","(EC)","Yellow","A"]
[null,"Orca 125 EC",125,"g/litre","(EC)","Yellow","A"]
[null,"Fusilade Forte",150,"g/litre","(EC)","Yellow","A"]
[]
[null,"GLUFOSINATE AMMONIUM",null,null,null,null,null,"SEE NOTES"]
[null,"TRADE NAME","AI STRENGTH","UNIT","FORMULATION","LABEL BAND","HRAC GROUP"]
[null,"Basta",200,"g/litre","(SL)","Yellow","H"]
[null,"Bound",200,"g/litre","(SL)","Yellow","H"]
[null,"Brass",200,"g/litre","(SL)","Yellow","H"]
[null,"Nirvana",200,"g/litre","(SL)","Yellow","H"]
[]
[null,"GLYPHOSATE",null,null,null,null,null,"SEE NOTES"]
[null,"TRADE NAME","AI STRENGTH","UNIT","FORMULATION","LABEL BAND","HRAC GROUP"]
[null,"Slash 710 SG",710,"g/kg","(WSG)","Green-Blue","G"]
[null,"Glygran 710 SG",710,"g/kg","(WSG)","Green-Blue","G"]
[null,"Kalach 700",700,"g/kg","(WSG)","Green-Blue","G"]
[null,"Piranha Dry",686,"g/kg","(WSG)","Green-Blue","G"]
[null,"Erase Super 540 SL",540,"g/kg","(SL)","Green-Blue","G"]
[null,"Piranha 510 SL",510,"g/kg","(SL)","Green-Blue","G"]
[null,"Kalach 510 SL",510,"g/kg","(SL)","Green-Blue","G"]
[null,"Clearout 500",500,"g/kg","(WSG)","Green-Blue","G"]
[null,"Erase 500",500,"g/kg","(WSG)","Green-Blue","G"]
[null,"Touchdown Forte Hitech",500,"g/litre","(SC)","Green-Blue","G"]
[null,"Mamba DMA",480,"g/litre","(SL)","Green-Blue","G"]
[null,"Mamba Max",480,"g/litre","(SL)","Green-Blue","G"]
[null,"Slash Turbo",450,"g/litre","(SL)","Green-Blue","G"]
[null,"Roundup Turbo",450,"g/litre","(SL)","Green-Blue","G"]
[null,"Muscle-up 360 SL",360,"g/litre","(SL)","Green-Blue","G"]
[null,"Bounty SL",360,"g/litre","(SL)","Green-Blue","G"]
[null,"Slash 360",360,"g/litre","(SL)","Green-Blue","G"]
[null,"Scat 360",360,"g/litre","(SL)","Green-Blue","G"]
[null,"Panga 360",360,"g/litre","(SL)","Green-Blue","G"]
[null,"Piranha 360",360,"g/litre","(SL)","Green-Blue","G"]
[null,"Annihilate",360,"g/litre","(SL)","Green-Blue","G"]
[null,"Persuador",360,"g/litre","(SL)","Green-Blue","G"]
[null,"Erase 360",360,"g/litre","(SL)","Green-Blue","G"]
[null,"Clearout 360",360,"g/litre","(SL)","Green-Blue","G"]
[null,"Clearout 180",180,"g/litre","(SL)","Green-Blue","G"]
[null,"Mamba",360,"g/litre","(SL)","Green-Blue","G"]
[null,"Roundup 360",360,"g/litre","(SL)","Green-Blue","G"]
[null,"Senator Xtra",360,"g/litre","(SL)","Green-Blue","G"]
[null,"Springbok ",360,"g/litre","(SL)","Green-Blue","G"]
[]
[null,"HALOSULFURON",null,null,null,null,null,"SEE NOTES"]
[null,"TRADE NAME","AI STRENGTH","UNIT","FORMULATION","LABEL BAND","HRAC GROUP"]
[null,"Servian",750,"g/kg","(WDG)","Green","B"]
[null,"Cyprex",750,"g/kg","(WDG)","Green","B"]
[null,"Brigadier 750 WG",750,"g/kg","(WDG)","Green","B"]
[null,"Crown",750,"g/kg","(WDG)","Green","B"]
[null,"Halo",750,"g/kg","(WDG)","Green","B"]
[]
[null,"HEXAZINONE",null,null,null,null,null,"SEE NOTES"]
[null,"TRADE NAME","AI STRENGTH","UNIT","FORMULATION","LABEL BAND","HRAC GROUP"]
[null,"Hexazinone 75 DF",750,"g/kg","(WDG)","Yellow","C1"]
[null,"Unizone 750 WDG",750,"g/kg","(WDG)","Yellow","C1"]
[null,"V-Zone 750 DF",750,"g/kg","(WDG)","Yellow","C1"]
[null,"Villex 750 WDG",750,"g/kg","(WDG)","Yellow","C1"]
[null,"Zinon WG",750,"g/kg","(WSG)","Yellow","C1"]
[null,"Hexazinone 480 SL",480,"g/litre","(SL)","Yellow","C1"]
[null,"Hexsan 240",240,"g/litre","(SL)","Yellow","C1"]
[null,"HexaziMax",240,"g/litre","(SL)","Yellow","C1"]
[null,"Ransom 240 SL",240,"g/litre","(SL)","Yellow","C1"]
[null,"UAP Hexazinone",240,"g/litre","(SL)","Yellow","C1"]
[null,"Arysta Hexazinone",240,"g/litre","(SL)","Yellow","C1"]
[null,"FarmAg Hexazinone 750 WG",750,"g/kg","(WDG)","Yellow","C1"]
[null,"Velpar DF",750,"g/kg","(WSG)","Yellow","C1"]
[]
[null,"HEXAZINONE + CLOMAZONE",null,null,null,null,null,"SEE NOTES"]
[null,"TRADE NAME","AI STRENGTH","UNIT","FORMULATION","LABEL BAND","HRAC GROUP"]
[null,"Dropzone 500 WP","400+100","g/kg","(WP)","Blue","C1 + F3"]
[]
[null,"HEXAZINONE + DIURON",null,null,null,null,null,"SEE NOTES"]
[null,"TRADE NAME","AI STRENGTH","UNIT","FORMULATION","LABEL BAND","HRAC GROUP"]
[null,"Bobcat Combi 600 WG","132+468","g/kg","(WDG)","Yellow","C1 + C2"]
[null,"Velpar K2.4","250+533","g/kg","(WDG)","Yellow","C1 + C2"]
[null,"Velpar K3.0","250+533","g/kg","(WDG)","Yellow","C1 + C2"]
[null,"Velpar K2.0","375+400","g/kg","(WDG)","Yellow","C1 + C2"]
[]
[null,"IMAZAPYR",null,null,null,null,null,"SEE NOTES"]
[null,"TRADE NAME","AI STRENGTH","UNIT","FORMULATION","LABEL BAND","HRAC GROUP"]
[null,"Arsenal GEN 2",240,"g/litre","(EC)","Blue","B"]
[]
[null,"ISOXADIFEN-ETHYL + TEMBOTRIONE",null,null,null,null,null,"SEE NOTES"]
[null,"TRADE NAME","AI STRENGTH","UNIT","FORMULATION","LABEL BAND","HRAC GROUP"]
[null,"Laudis",630,"g/litre","(SC)","Yellow","F2"]
[]
[null,"ISOXAFLUTOLE",null,null,null,null,null,"SEE NOTES"]
[null,"TRADE NAME","AI STRENGTH","UNIT","FORMULATION","LABEL BAND","HRAC GROUP"]
[null,"Merlin",750,"g/kg","(WDG)","Green","F2"]
[null,"Guillotine 750 WG",750,"g/kg","(WDG)","Green","F2"]
[null,"Silencer",750,"g/kg","(WDG)","Green","F2"]
[null,"Manter",750,"g/kg","(WDG)","Green","F2"]
[null,"Palmero 750 WG",750,"g/kg","(WDG)","Green","F2"]
[]
[null,"ISOXAFLUTOLE + INDAZIFLAM",null,null,null,null,null,"SEE NOTES"]
[null,"TRADE NAME","AI STRENGTH","UNIT","FORMULATION","LABEL BAND","HRAC GROUP"]
[null,"Alion Total","450+150","g/litre","(SC)","?","L29 + F2"]
[]
[null,"MCPA",null,null,null,null,null,"SEE NOTES"]
[null,"TRADE NAME","AI STRENGTH","UNIT","FORMULATION","LABEL BAND","HRAC GROUP"]
[null,"Tornado 400 SL",400,"g/litre","(SL)","Yellow","O"]
[null,"Rescue 400 SL",400,"g/litre","(SL)","Yellow","O"]
[null,"MCPA 400 SL",400,"g/litre","(SL)","Yellow","O"]
[null,"Universal MCPA",400,"g/litre","(SL)","Yellow","O"]
[null,"GAP MCPA",400,"g/litre","(SL)","Yellow","O"]
[]
[null,"MESOTRIONE",null,null,null,null,null,"SEE NOTES"]
[null,"TRADE NAME","AI STRENGTH","UNIT","FORMULATION","LABEL BAND","HRAC GROUP"]
[null,"Astron 480 SC",480,"g/litre","(SC)","Yellow","C1"]
[null,"Amazing",480,"g/litre","(SC)","Yellow","C1"]
[null,"Galago S",480,"g/litre","(SC)","Yellow","C1"]
[]
[null,"MESOTRIONE + S-METOLACHLOR + TERBUTHYLAZINE",null,null,null,null,null,"SEE NOTES"]
[null,"TRADE NAME","AI STRENGTH","UNIT","FORMULATION","LABEL BAND","HRAC GROUP"]
[null,"Lumax","37.5+375+125","g/litre","(SE)","Yellow","C1+F2+K3"]
[null,"Locate 538 SC","37.5+375+125","g/litre","(SE)","Yellow","C1+F2+K3"]
[null,"Local 538 SC","37.5+375+125","g/litre","(SE)","Yellow","C1+F2+K3"]
[]
[null,"METAZACHLOR",null,null,null,null,null,"SEE NOTES"]
[null,"TRADE NAME","AI STRENGTH","UNIT","FORMULATION","LABEL BAND","HRAC GROUP"]
[null,"Claw 500 SC",500,"g/litre","(SC)","Blue","K3"]
[null,"Sultan 50 SC",500,"g/litre","(SC)","Blue","K3"]
[null,"Metolachlor 960 EC",960,"g/litre","(EC)","Yellow","K3"]
[null,"Tolla 960",960,"g/litre","(EC)","Yellow","K3"]
[null,"Platinum",960,"g/litre","(EC)","Yellow","K3"]
[null,"Buccaneer 960",960,"g/litre","(EC)","Yellow","K3"]
[null,"Unimoc EC",960,"g/litre","(EC)","Yellow","K3"]
[]
[null,"METOLACHLOR",null,null,null,null,null,"SEE NOTES"]
[null,"TRADE NAME","AI STRENGTH","UNIT","FORMULATION","LABEL BAND","HRAC GROUP"]
[null,"Metolachlor 960 EC",960,"g/litre","(EC)","Yellow","K3"]
[null,"Tolla 960",960,"g/litre","(EC)","Yellow","K3"]
[null,"Platinum",960,"g/litre","(EC)","Yellow","K3"]
[null,"Buccaneer 960",960,"g/litre","(EC)","Yellow","K3"]
[null,"Unimoc EC",960,"g/litre","(EC)","Yellow","K3"]
[]
[null,"S-METOLACHLOR",null,null,null,null,null,"SEE NOTES"]
[null,"TRADE NAME","AI STRENGTH","UNIT","FORMULATION","LABEL BAND","HRAC GROUP"]
[null,"Falcon Gold",960,"g/litre","(EC)","Yellow","K3"]
[null,"Palladium 960",960,"g/litre","(EC)","Yellow","K3"]
[null,"Tolla Super 960 EC",960,"g/litre","(EC)","Yellow","K3"]
[]
[null,"METRIBUZIN",null,null,null,null,null,"SEE NOTES"]
[null,"TRADE NAME","AI STRENGTH","UNIT","FORMULATION","LABEL BAND","HRAC GROUP"]
[null,"Sentak",480,"g/litre","(SC)","Yellow","C1"]
[null,"Metribuzin 480 SC",480,"g/litre","(SC)","Yellow","C1"]
[null,"GAP Metribuzin",480,"g/litre","(SC)","Yellow","C1"]
[null,"Arysta Metribuzin 480",480,"g/litre","(SC)","Yellow","C1"]
[null,"Metricane 700 WDG",700,"g/kg","(WGD)","Yellow","C1"]
[null,"Amazon 480 SC",480,"g/litre","(SC)","Yellow","C1"]
[null,"Mistral 700 WG",700,"g/kg","(WGD)","Yellow","C1"]
[null,"Ag-Metribuzin",480,"g/litre","(SC)","Yellow","C1"]
[null,"Metribuzin 75 WG",750,"g/kg","(WGD)","Yellow","C1"]
[]
[null,"METRIBUZIN + CHLORIMURON-ETHYL",null,null,null,null,null,"SEE NOTES"]
[null,"TRADE NAME","AI STRENGTH","UNIT","FORMULATION","LABEL BAND","HRAC GROUP"]
[null,"Extreme Plus","643+107","g/kg","(WGD)","Yellow","C1 + B"]
[null,"Imposter","643+107","g/kg","(WGD)","Yellow","C1 + B"]
[]
[null,"METRIBUZIN + DIURON",null,null,null,null,null,"SEE NOTES"]
[null,"TRADE NAME","AI STRENGTH","UNIT","FORMULATION","LABEL BAND","HRAC GROUP"]
[null,"Metrad","360+400","g/kg","(WGD)","Yellow","C1 + C2"]
[]
[null,"MSMA",null,null,null,null,null,"SEE NOTES"]
[null,"TRADE NAME","AI STRENGTH","UNIT","FORMULATION","LABEL BAND","HRAC GROUP"]
[null,"GAP MSMA",720,"g/litre","(SL)","Yellow","Z"]
[null,"MSMA",720,"g/litre","(SL)","Yellow","Z"]
[null,"MSMA SL",720,"g/litre","(SL)","Yellow","Z"]
[null,"Arysta MSMA",720,"g/litre","(SL)","Yellow","Z"]
[null,"Agromate",720,"g/litre","(SL)","Yellow","Z"]
[]
[null,"PARAQUAT",null,null,null,null,null,"SEE NOTES"]
[null,"TRADE NAME","AI STRENGTH","UNIT","FORMULATION","LABEL BAND","HRAC GROUP"]
[null,"Makhro Paraquat",200,"g/litre","(SL)","Yellow-Red","D"]
[null,"Agroquat 200",200,"g/litre","(SL)","Yellow-Red","D"]
[null,"Paraquat 200 SL",200,"g/litre","(SL)","Yellow-Red","D"]
[null,"Harpoon 200 SL",200,"g/litre","(SL)","Yellow-Red","D"]
[null,"Paragone SL",200,"g/litre","(SL)","Yellow-Red","D"]
[null,"GAP Paraquat",200,"g/litre","(SL)","Yellow-Red","D"]
[null,"Skoffle 145 SL",145,"g/litre","(SL)","Yellow-Red","D"]
[null,"Gramoxone",200,"g/litre","(SL)","Yellow-Red","D"]
[null,"Paraquat SL",200,"g/litre","(SL)","Yellow-Red","D"]
[null,"Skoffle 200 Super",200,"g/litre","(SL)","Yellow-Red","D"]
[null,"Arysta Paraquat",200,"g/litre","(SL)","Yellow-Red","D"]
[]
[null,"PARAQUAT + DIURON",null,null,null,null,null,"SEE NOTES"]
[null,"TRADE NAME","AI STRENGTH","UNIT","FORMULATION","LABEL BAND","HRAC GROUP"]
[null,"X-Tinct","450+50","g/litre","(SC)","Yellow-Red","D + C2"]
[null,"Farmuron","100+300","g/litre","(SL)","Yellow-Red","D + C2"]
[null,"Gramuron","100+300","g/litre","(SL)","Yellow-Red","D + C2"]
[null,"Volmuron","100+300","g/litre","(SL)","Yellow-Red","D + C2"]
[]
[null,"PENDIMETHALIN",null,null,null,null,null,"SEE NOTES"]
[null,"TRADE NAME","AI STRENGTH","UNIT","FORMULATION","LABEL BAND","HRAC GROUP"]
[null,"Prowl",455,"g/litre","(CS)","Yellow","K1"]
[null,"Pendimethalin 500 EC",500,"g/litre","(EC)","Yellow","K1"]
[null,"Parabat 500 EC",500,"g/litre","(EC)","Yellow","K1"]
[null,"Alligator 500 EC",500,"g/litre","(EC)","Yellow","K1"]
[]
[null,"SAFLUFENACIL + DIMETHENAMID-P",null,null,null,null,null,"SEE NOTES"]
[null,"TRADE NAME","AI STRENGTH","UNIT","FORMULATION","LABEL BAND","HRAC GROUP"]
[null,"Intelex",68,"g/litre","(EC)","Blue","E + K3"]
[]
[null,"SULCOTRIONE + ATRAZINE",null,null,null,null,null,"SEE NOTES"]
[null,"TRADE NAME","AI STRENGTH","UNIT","FORMULATION","LABEL BAND","HRAC GROUP"]
[null,"Armadillo","125+300","g/litre","(SC)","Yellow","F2 + C1"]
[null,"Shuttle 425 SC","125+300","g/litre","(SC)","Yellow","F2 + C1"]
[]
[null,"SULFENTRAZONE",null,null,null,null,null,"SEE NOTES"]
[null,"TRADE NAME","AI STRENGTH","UNIT","FORMULATION","LABEL BAND","HRAC GROUP"]
[null,"Preelect 750 WDG",750,"g/kg","(WDG)","Blue","E"]
[null,"Avon 750 WDG",750,"g/kg","(WDG)","Blue","E"]
[]
[null,"TEBUTHIURON",null,null,null,null,null,"SEE NOTES"]
[null,"TRADE NAME","AI STRENGTH","UNIT","FORMULATION","LABEL BAND","HRAC GROUP"]
[null,"Tarantula 500 SC",500,"g/litre","(SC)","Yellow","C2"]
[null,"Teburox",500,"g/litre","(SC)","Yellow","C2"]
[null,"Tebusan 500 SC",500,"g/litre","(SC)","Yellow","C2"]
[null,"Arysta Lava 500 SC",500,"g/litre","(SC)","Yellow","C2"]
[null,"Lava 800  WDG",800,"g/kg","(WDG)","Yellow","C2"]

{"sheet":"NOTES","index":3,"n_rows":1006,"n_cols":3,"rows_kept":1006,"cut":false,"hidden":false,"merged":[[1,1,1,2],[3,1,3,2],[21,1,21,2],[1002,1,1005,1],[956,1,956,2],[972,1,973,1],[972,2,973,2],[974,1,980,1],[982,1,982,2],[998,1,1001,1],[907,1,908,1],[907,2,908,2],[909,1,920,1],[922,1,922,2],[938,1,940,1],[941,1,954,1],[870,1,871,1],[872,1,873,1],[880,1,881,1],[884,1,886,1],[887,1,889,1],[891,1,891,2],[826,1,827,1],[828,1,840,1],[842,1,842,2],[858,1,859,1],[860,1,863,1],[865,1,865,2],[786,1,787,1],[789,1,790,1],[794,1,800,1],[801,1,804,1],[806,1,806,2],[812,1,816,1],[743,1,748,1],[750,1,750,2],[756,1,757,1],[767,1,768,1],[769,1,774,1],[776,1,776,2],[695,1,695,2],[711,1,714,1],[715,1,717,1],[719,1,719,2],[732,1,733,1],[736,1,742,1],[659,1,663,1],[664,1,667,1],[669,1,669,2],[677,1,678,1],[686,1,690,1],[691,1,693,1],[610,1,611,1],[613,1,613,2],[626,1,627,1],[630,1,636,1],[637,1,641,1],[643,1,643,2],[543,1,546,1],[547,1,557,1],[559,1,559,2],[575,1,582,1],[585,1,585,2],[601,1,609,1],[498,1,499,1],[510,1,511,1],[512,1,523,1],[525,1,525,2],[533,1,534,1],[539,1,540,1],[453,1,459,1],[460,1,461,1],[463,1,463,2],[479,1,480,1],[481,1,491,1],[493,1,493,2],[401,1,404,1],[406,1,406,2],[422,1,428,1],[429,1,434,1],[436,1,436,2],[442,1,443,1],[366,1,367,1],[368,1,372,1],[373,1,379,1],[381,1,381,2],[396,1,397,1],[398,1,400,1],[308,1,313,1],[314,1,321,1],[323,1,323,2],[339,1,344,1],[345,1,349,1],[351,1,351,2],[264,1,265,1],[276,1,283,1],[284,1,286,1],[288,1,288,2],[291,1,294,1],[297,1,298,1],[231,1,233,1],[235,1,235,2],[240,1,241,1],[252,1,255,1],[256,1,257,1],[259,1,259,2],[179,1,179,2],[192,1,193,1],[196,1,205,1],[206,1,210,1],[212,1,212,2],[228,1,230,1],[139,1,141,1],[143,1,143,2],[148,1,149,1],[157,1,158,1],[161,1,166,1],[167,1,177,1],[91,1,91,2],[107,1,112,1],[113,1,115,1],[117,1,117,2],[122,1,123,1],[134,1,138,1],[63,1,63,2],[22,1,22,2],[42,1,42,2]]}
[]
[null,"ADDITIONAL INFORMATION PER ACTIVE INGREDIENT  "]
[]
[null,"ACETOCHLOR"]
[null,"HRAC Group = K3","Inhibits protein or fat synthesis and cell division and hence growth and development "]
[null,"Weeds controlled","Controls grasses and a few broadleaf weeds when applied before germination of the weeds."]
[null,"Variable control","Yellow watergrass"]
[null,"Site of absorption","Germinating grass seeds. No post-emergence activity"]
[null,"Climatic requirements","You need at least 15 mm rain within 5-10 days after application. Best results are obtained when rainfall moves the herbicide into the root zone after application."]
[null,"Maximum cane size before applying as a directed spray","Apply at planting or immediately following planting, but not later than 3 days after planting. Acetochlor has no post-emergence activity and can be applied post-emergence to the crop after cultivation, when no weeds are present. "]
[null,"Level of management required","Medium"]
[null,"Leaching","Low leaching"]
[null,"Label band colour of worst ingredient","Blue. Toxic with caution required."]
[null,"Toxicity to rats","Low (ORAL LD50 2000-8000 mg/kg)"]
[null,"Toxicity to birds","Medium (LD50 900-2000 mg/kg)"]
[null,"Toxicity to bees","Low or no toxicity (LD50 1000 ug/BEE - non toxic)"]
[null,"Toxicity to fish","High (LC50 1-20 mg/L)"]
[null,"Spray rate of water","200-300 litres per hectare"]
[null,"Increase herbicide application rate according to","Clay content."]
[null,"Comments ","Apply the higher acetochlor dosage rate on soils with more than 30% clay, or where longer residual action, or better control of yellow watergrass is required. Use the lower dosage rate on lighter soils."]
[null,"Precautions ","Do not apply acetochlor to poorly drained soils, or soils with a compaction layer as the herbicide may cause crop injury in cases of waterlogging.\nDo not apply acetochlor to sandy soils susceptible to wind erosion.\nEnsure continuous agitation of the spray mixture during mixing and application."]
[]
[null,"ALACHLOR"]
[null,"HRAC Group = K3","Inhibits protein or fat synthesis and cell division and hence growth and development "]
[null,"Weeds controlled","Annual grasses, Panicum maximum, some broadleaf"]
[null,"Variable control","Yellow watergrass"]
[null,"Site of absorption","Germinating grass seeds and roots of broadleaf"]
[null,"Climatic requirements","You need 10-15 mm rain within 5-10 days after application. "]
[null,"Maximum cane size before applying as a directed spray","Apply alachlor preferably with or directly after planting but not later than three days after planting. 0-5 unfurled leaves. Safe in plant and ratoon cane."]
[null,"Level of management required","High (leaching risk)"]
[null,"Leaching","Very high leaching risk"]
[null,"Label band colour of worst ingredient","Yellow. Toxic and described as harmful"]
[null,"Toxicity to rats","Low toxicity to mammals (ORAL LD50 2000-8000 mg/kg)"]
[null,"Toxicity to birds","Low toxicity to birds (LD50 2000-20000 mg/kg)"]
[null,"Toxicity to bees","Medium - high toxicity to bees (LD50 70-1000 ug/BEE)"]
[null,"Toxicity to fish","Medium toxicity to fish (LC50 50-300 mg/L) "]
[null,null,"Some formulations can be toxic to fish."]
[null,"Spray rate of water","100-300 litres per hectare"]
[null,"Increase herbicide application rate according to","Clay content. "]
[null,"Comments ","If you expect heavy Panicum maximum (barbi grass) pressure from seed, apply highest rate of alachlor in the mixes. "]
[null,"Precautions ","Do not use alachlor on poorly drained soils or soils with a compaction layer. Under these conditions waterlogging can occur and the herbicide may cause crop injury. Do not use alachlor on sandy soils which are susceptible to soil erosion.\nEnsure thorough agitation of the mixture in the tank throughout mixing and spraying. The mixture must not stand overnight. \nWhen mixed with diuron, the diuron rate is very high so do not use this treatment on sensitive fields (e.g. sandy soils with sensitive varieties)."]
[]
[null,"ACETOCHLOR + AMETRYN"]
[null,"HRAC Group = K3 + C1","Inhibits photosynthesis (conversion of light to chemical energy), cell division and protein or fat synthesis and hence growth and development"]
[null,"Weeds controlled","Annual grasses, Panicum maximum, some broadleaf"]
[null,"Variable control","Yellow watergrass"]
[null,"Site of absorption","Germinating grass seeds"]
[null,"Climatic requirements","You need at least 15 mm rain within 5-10 days after application. "]
[null,"Maximum cane size before applying as a directed spray","Preferably apply before emergence of the weeds. 0-2 unfurled leaves."]
[null,"Level of management required","Medium"]
[null,"Leaching","Low-medium"]
[null,"Label band colour of worst ingredient","Yellow. Toxic and described as harmful"]
[null,"Toxicity to rats","Low (ORAL LD50 2000-8000 mg/kg)"]
[null,"Toxicity to birds","Medium (LD50 900-2000 mg/kg)"]
[null,"Toxicity to bees","Medium-high (LD50 70-1000 ug/BEE)"]
[null,"Toxicity to fish","Very high (LC50 0.023-1.0 mg/L). "]
[null,null,"WARNING: Toxic to fish and aquatic organisms."]
[null,"Spray rate of water","200-300 litres per hectare"]
[null,"Increase herbicide application rate according to","Clay content."]
[null,"Comments ","For early post-emergence application, add 1.5 litres per hectare paraquat to kill weeds that have germinated. This will create a pre-emergence situation for weed control with ametryn."]
[null,null,"Add a non-ionic surfactant to the final spray mixture, to enhance the efficacy of post-emergence treatment."]
[null,"Precautions ","Ensure continuous agitation of the spray mixture during mixing and application"]
[]
[null,"AMETRYN"]
[null,"HRAC Group = C1","Inhibits photosynthesis (conversion of light to chemical energy)"]
[null,"Weeds controlled","Annual grasses, some broadleaf"]
[null,"Variable control","Yellow watergrass"]
[null,"Site of absorption","Roots and foliage"]
[null,"Climatic requirements","Effective post-emergence weed control can be obtained under relatively dry conditions. For pre-emergence control, soil must be moist and conditions must favour rapid growth."]
[null,"Maximum cane size before applying as a directed spray","0-5 unfurled leaves. Wherever possible preference should be given to a directed spray treatment."]
[null,"Level of management required","Medium"]
[null,"Leaching","Low-medium adsorption. Adsorption increases with clay and OM content. It has more adsorption than other triazines."]
[null,"Label band colour of worst ingredient","Yellow. Toxic and described as harmful"]
[null,"Toxicity to rats","Low (ORAL LD50 2000-8000 mg/kg)"]
[null,"Toxicity to birds","Low (LD50 2000-20000 mg/kg)"]
[null,"Toxicity to bees","Medium-high (LD50 70-1000 ug/BEE)"]
[null,"Toxicity to fish","Very high (LC50 0.023-1.0 mg/L). "]
[null,null,"Toxic to fish and aquatic organisms."]
[null,"Spray rate of water","200-500 litres per hectare, depending on density and size of weeds."]
[null,"Increase herbicide application rate according to","Clay content. "]
[null,"Comments ","Pre-Emergence: Combine ametryn with metolachlor or acetochlor to control annual broadleaf weeds and grasses. Use lower rates on light-medium clay soils and higher rates on medium-heavy clay soils. "]
[null,null,"Post-emergence: Ametryn may be applied at any growth stage of cane, but weeds must be small and actively growing. Add a non-ionic surfactant to the final spray mixture to increase efficacy."]
[null,null,"Broadleaf less than 10 cm: Ametryn + MCPA + paraquat + surfactant. "]
[null,null,"Mainly broadleaf and annual grasses: Apply 8L/ha ametryn to broadleaf weeds less than 7.5 cm and grasses less than 4 cm."]
[null,null,"Mainly Cyperus esculentus: Apply ametryn + MCPA + surfactant when C. esculentus is in the early flowering stage. Only fully emerged plants will be controlled for a period of 3 to 6 weeks. Broadleaf weeds smaller than 4cm will also be controlled."]
[null,null,"Broadleaf, annual grasses and C. esculentus: Apply ametryn + metribuzin + surfactant when C. esculentus is in the early flowering stage. This will control only fully emerged C. esculentus under favourable climatic conditions. Broadleaf weeds and grasses less than 4cm will also be controlled. Use the higher ametryn rate for heavy grass pressure lands."]
[null,null,"Mainly emerged small grasses: Ametryn + MSMA (no surfactant). Rottboellia which germinates after application will not be effectively controlled. Proper wetting is essential for good control. Panicum maximum below other weeds will not be controlled."]
[null,"Precautions ","Do not apply near roots of desirable plants."]
[null,null,"Do not mix, load or apply within at least 15 metres of boreholes, streams, rivers and dams or at least 60 metres from dams. "]
[null,null,"Agitate spray mixture thoroughly before and during spraying."]
[]
[null,"AMICARBAZONE"]
[null,"HRAC Group = C1","Inhibits photosynthesis (conversion of light to chemical energy)"]
[null,"Weeds controlled","Broadleaf weeds (including creepers) and certain grasses"]
[null,"Variable control","Yellow watergrass"]
[null,"Site of absorption","Foliage and roots"]
[null,"Climatic requirements","Certain combination treatments can be applied under both dry or moist soil conditions"]
[null,"Maximum cane size before applying as a directed spray","Apply pre-emergence soon after harvesting before the weeds have germinated and the first cane leaves are 10 cm high. Apply post-emergence directed away from cane foliage. Amicarbazone can cause temporary leaf chlorosis and plant stunting, especially on tillered cane grown in a low clay soil. Symptoms can be severe if the spray mixture comes into direct contact with developed leaves."]
[null,"Level of management required","High"]
[null,"Leaching","Very high. Avoid soils with less than 0.5 % organic matter, greater than 60 % sand, and a water table that is less than 2m below the surface."]
[null,"Label band colour of worst ingredient","Blue band. Toxic described as caution required."]
[null,"Toxicity to rats","Medium (ORAL LD50 1000-2000 mg/kg)"]
[null,"Toxicity to birds","Low (LD50 2000-20000 mg/kg)"]
[null,"Toxicity to bees","Medium-high (LD50 70-1000 ug/BEE)"]
[null,"Toxicity to fish","Medium (LC50 50-300 mg/L)"]
[null,"Spray rate of water","200-300 litres per hectare"]
[null,"Increase herbicide application rate according to","DO NOT INCREASE RATE. Carefully follow label directions."]
[null,"Comments ","Pre-emergence: Apply amicarbazone after harvesting and before the weeds have germinated and the first cane leaves are 10 cm high. Amicarbazone MUST be combined with a) acetochlor to moist soil, or b) with hexazinone to a dry or moist soil. To suppress e.g. Cyperus esculentus and/or control Panicum maximum, apply the highest permitted hexazinone rate (see label for clay% and time of season). Better Cyperus esculentus suppression depends on early application and follow-up moisture. Add paraquat at 1 ℓ/ha if small weeds are present."]
[null,null,"Post-emergence:"]
[null,null,"Direct spray between rows and avoid contact with cane foliage."]
[null,null,"Cyperus esculentus and broadleaf weeds: Apply amicarbazone + MCPA + approved surfactant when C. esculentus is more than 20% flowering at spraying for optimum control. "]
[null,null,"Grass seedlings: Apply amicarbazone + ametryn + approved surfactant. Grasses should not be beyond the tillered stage. Cyperus esculentus is also controlled. "]
[null,null,"Cyperus esculentus, broadleaf and grass weeds: Apply amicarbazone + ametryn + MCPA + approved surfactant. "]
[null,"Precautions","ONLY in fields with more than 10% clay. Avoid soils with less than 0.5 % organic matter, greater than 60 % sand, and a water table that is less than 2 m below the surface. You get better weed control in soil free of extraneous matter (e.g. thick trash blanket). "]
[null,null,"Avoid double application in one season and overlapping spray swaths. Do not use on cane fields that have been treated with e.g. lime, gypsum, filter press, chicken litter that may raise soil pH in the last 12 months. Do not use if soil pH is > 7.4. "]
[null,null,"Contact your supplier for more details."]
[]
[null,"ATRAZINE"]
[null,"HRAC Group = C1","Inhibits photosynthesis (conversion of light to chemical energy)"]
[null,"Weeds controlled","Annual broadleaf weeds and some grasses"]
[null,"Variable control","Yellow watergrass"]
[null,"Site of absorption","Mainly roots"]
[null,"Climatic requirements","You need 10-15mm rain within 7-10 days after application. "]
[null,null,"For best results, apply shortly irrigation or before rain is expected"]
[null,"Maximum cane size before applying as a directed spray","0-5 unfurled leaves. Safe in plant and ratoon cane."]
[null,"Level of management required","High (leaching risk)"]
[null,"Leaching","Very high leaching risk"]
[null,"Label band colour of worst ingredient","Yellow. Toxic and described as harmful"]
[null,"Toxicity to rats","Medium (ORAL LD50 1000-2000 mg/kg)"]
[null,"Toxicity to birds","Medium (LD50 900-2000 mg/kg)"]
[null,"Toxicity to bees","Low or no toxicity (LD50 1000 ug/BEE - NON TOXIC)"]
[null,"Toxicity to fish","High (LC50 1-20 mg/L)"]
[null,"Spray rate of water","200-300 litres per hectare"]
[null,"Increase herbicide application rate according to","Clay content. "]
[null,"Comments ","Pre-emergence:"]
[null,null,"Annual grasses and broadleaf weeds: Combine atrazine with a registered grasskiller, e.g. acetochlor or metolachor. "]
[null,null,"Apply immediately after planting and before weed emergence."]
[null,null,"Post-emergence application:"]
[null,null,"Annual grasses and broadleaf weeds: Where application is post-emergence to the cane and weeds, broad-leaf weeds should be less than the 2-leaf seedling stage. Grasses should not have germinated."]
[null,"Precautions ","Not recommended by SASRI due to leaching risk and bio-accumulation. There are alternative products with lower environmental risk. Repeated or prolonged use can lead to bio-accumulation in water courses. Do not mix or load within at least 15 metres of boreholes, streams and rivers or at least 60 metres from dams. Do not apply near the roots of desirable plants."]
[null,null,"Constant agitation throughout the spray operation is essential."]
[null,null,"Contact your local agro-chemical supplier for correct use. "]
[]
[null,"CHLORIMURON-ETHYL"]
[null,"HRAC Group = B","Inhibits protein or fat synthesis and hence growth and development"]
[null,"Weeds controlled","Yellow (Cyperus esculentus) and Purple (Cyperus rotundus) watergrass. Broadleaf weeds and some grasses"]
[null,"Variable control"]
[null,"Site of absorption","Roots and foliage"]
[null,"Climatic requirements","Ideally, apply onto moist soil. Rainfall or irrigation within 1-3 days after application will also improve weed control."]
[null,null,"Cool, dry conditions after spraying will reduce weed control. If dry weather conditions prevail after application, use an appropriate post-emergence herbicide."]
[null,"Maximum cane size before applying as a directed spray","0 unfurled leaves. Apply as a directed inter-row spray, avoid foliar contact. "]
[null,"Level of management required","High (leaching risk)"]
[null,"Leaching","Very high leaching risk"]
[null,"Label band colour of worst ingredient","Blue. Toxic and described as requiring caution"]
[null,"Toxicity to rats","Low (ORAL LD50 2000-8000 mg/kg)"]
[null,"Toxicity to birds","Low (LD50 2000-20000 mg/kg)"]
[null,"Toxicity to bees","Very high (LD50 11-50 ug/BEE)"]
[null,"Toxicity to fish","Toxic to fish and other aquatic organisms. "]
[null,null,"Considered a Marine Pollutant."]
[null,"Spray rate of water","100-400 litres per hectare"]
[null,"Increase herbicide application rate according to","Clay content. Do not exceed the label recommendations."]
[null,"Comments ","Pre-emergence and early post emergence:"]
[null,null,"Cyperus esculentus, grasses and broadleaf weeds: "]
[null,null,"Apply chlorimuron-ethyl + metribuzin pre-emergence as soon as possible after planting, or harvesting. Apply early post emergence to actively growing weeds, not later than the 4-leaf stage of broadleaf weeds or the 3-leaf stage of grasses and Cyperus esculentus."]
[null,null,"Cyperus rotundus: Apply before germination begins, whether visible or not. Application after germination, or a post-emergence application, will only result in suppression (± 60 % control)."]
[null,null,"Weed control is improved if soil has been disked or rotavated immediately before planting and spraying. In ratoon cane a similar inter row cultivation should precede spraying. "]
[null,null,"Poor weed control plus chlorosis and stunting may occur when cane is stressed by drought, waterlogging, cold temperatures, nutrient deficiencies (especially nitrogen and zinc), insect damage, disease, wind or hail damage or earlier herbicide damage."]
[null,"Precautions ","Avoid soils with exceptional high clay content, high cation exchange capacities and exceptionally high organic matter."]
[null,null,"Apply as soon as possible after planting or harvesting. "]
[null,null,"Avoid excessive overlapping of swathes."]
[null,null,"Never exceed the recommended dosage rate."]
[null,null,"Do not apply when weeds are covered with rain or dew or if rain is expected within 2 hours. "]
[null,null,"Do not spray when wind speed exceeds 15 km per hour or under gusty wind conditions."]
[null,null,"Do not use water containing high levels of chlorine. "]
[null,null,"Insufficient soil moisture, high soil temperatures, low soil pH and weed species may negatively affect the residual control of weeds germinating after application of the product."]
[null,null,"Water pH should be between 6.7 and 7.5. Residual activity may be extended when soils have a water pH above 7.0 or soils contain free lime or if you apply more than once in the same season. "]
[null,null,"Maintain proper agitation."]
[null,null,"Do not spray on or near desirable trees or plants or where their roots may extend or could come in contact with the herbicide."]
[]
[null,"DIURON"]
[null,"HRAC Group = C2","Inhibits photosynthesis (conversion of light to chemical energy)"]
[null,"Weeds controlled","Mainly annual broadleaf weeds and grasses"]
[null,"Variable control","Yellow watergrass"]
[null,"Site of absorption","Mainly through roots, but also through foliage"]
[null,"Climatic requirements","Apply to moist soil and with at least 15 mm rain within 1 week after application. "]
[null,"Maximum cane size before applying as a directed spray","0-5 unfurled leaves. High rates can affect cane growth of most varieties."]
[null,"Level of management required","Medium"]
[null,"Leaching","Medium-high leaching risk"]
[null,"Label band colour of worst ingredient","Blue. Toxic and described as requiring caution"]
[null,"Toxicity to rats","Low (ORAL LD50 2000-8000 mg/kg)"]
[null,"Toxicity to birds","Medium (LD50 900-2000 mg/kg)"]
[null,"Toxicity to bees","Low or no toxicity (LD50 1000 ug/BEE - NON TOXIC)"]
[null,"Toxicity to fish","Moderate-highly toxic to fish (LC50 1-20 mg/L) "]
[null,null,"Highly toxic to aquatic organisms. "]
[null,"Spray rate of water","200-400 litres per hectare"]
[null,"Increase herbicide application rate according to","Clay content. "]
[null,"Comments ","Ideal for use with a variety of other chemicals as it controls a range of weeds. More water dependent than ametryn."]
[null,null,"Pre-emergence:"]
[null,null,"Diuron is combined with e.g. acetochlor, metribuzin, isoxaflutole or pendimethalin."]
[null,null,"Pre-early post-emergence:"]
[null,null,"For early post and post-emergence applications, add a recommended adjuvant if the label recommends it. "]
[null,null,"Weeds should be actively growing and in the correct growth stage for optimum results."]
[null,null,"Diuron can be combined with one of the following hexazinone, or metribuzin or MCPA or MSMA"]
[null,null,"Panicum maximum: is normally controlled with diuron+ hexazinone or diuron+MSMA before 4 cm tall and before tillering. "]
[null,null,"Cyperus esculentus: Can be controlled if sprayed by diuron + MCPA just before flowering. Variable results may be obtained if sprayed earlier or during cold or dry weather conditions."]
[null,null,"Cyperus rotundus Rottboellia, Cynodon dactylon and Paspalum species are not controlled. Control of Sorghum verticilliflorum is usually inadequate."]
[null,"Precautions ","Avoid leaching on soils with low clay and organic matter content."]
[null,null,"Do not apply near desirable plants or trees. "]
[null,null,"Do not mix, load or apply within 20 meters of any water source."]
[null,null,"Prevent overlapping spray swaths and double spraying."]
[null,null,"Maintain proper agitation."]
[]
[null,"EPTC"]
[null,"HRAC Group = N","Inhibits protein/ fat synthesis and hence growth and development"]
[null,"Weeds controlled","Mainly grasses, and yellow and purple watergrass"]
[null,"Variable control"]
[null,"Site of absorption","Roots"]
[null,"Climatic requirements","Soil should be moist for activation of the chemical"]
[null,"Maximum cane size before applying as a directed spray","0-5 unfurled leaves"]
[null,"Level of management required","High"]
[null,"Leaching","Adsorbed into particles of dry soil. Adsorption increases as clay and organic matter contents increase"]
[null,"Label band colour of worst ingredient","Yellow. Toxic and described as harmful"]
[null,"Toxicity to rats","Medium (ORAL LD50 1000-2000 mg/kg)"]
[null,"Toxicity to birds","Low (LD50 2000-20000 mg/kg)"]
[null,"Toxicity to bees","Very high (LD50 11-50 ug/BEE)"]
[null,"Toxicity to fish","High (LC50 1-20 mg/L)"]
[null,"Spray rate of water","250-450 litres per hectare"]
[null,"Increase herbicide application rate according to","Clay content"]
[null,"Comments ","ONLY use EPTC in plant cane fields."]
[null,null,"Provides good control of Cyperus rotundus and C. esculentus if adequately incorporated into the soil, and if furrows are not drawn deeper than the depth of incorporation (200 mm). Only use EPTC if soil conditions are suitable for fast germination of the crop."]
[]
[null,"Precautions ","EPTC MUST BE incorporated into the soil within two minutes after application and preferably in one operation, especially if the soil surface is moist, because the product is very volatile. "]
[null,null,"It must be thoroughly mixed with the uppermost 10 -15 cm soil layer, before planting takes place, or it should be injected into the soil at planting time with a suitable implement."]
[null,null,"Read label instructions."]
[]
[null,"FLUAZIFOP-BUTYL"]
[null,"HRAC Group = A","Inhibits protein or fat synthesis and hence growth and development"]
[null,"Weeds controlled","Post-emergence control of grasses, including sugarcane"]
[null,"Expected period of  control","Kills existing grasses but has some residual action"]
[null,"Site of absorption","Foliage then translocated"]
[null,"Climatic requirements","Warm, humid conditions when weeds are vigorously growing. Drought conditions will result in poor or no weed control. "]
[null,null,"Rain within one hour will necessitate re-spraying. "]
[null,"Maximum cane size before applying as a directed spray","The product stunts or kills young, uncurled leaves and may also kill the growing points of cane."]
[null,"Level of management required","Medium"]
[null,"Leaching","Low. Only slightly mobile in soil"]
[null,"Label band colour of worst ingredient","Yellow. Toxic and described as harmful"]
[null,"Toxicity to rats","Low (ORAL LD50 2000-8000 mg/kg)"]
[null,"Toxicity to birds","Low (ORAL LD50 2000-20000 mg/kg)"]
[null,"Toxicity to bees","Medium high (LD50 70-1000 ug/BEE)"]
[null,"Toxicity to fish","High (LC50 1-20 mg/L)"]
[null,"Spray rate of water","200-300 litres per hectare"]
[null,"Increase herbicide application rate according to","Weed species"]
[null,"Comments ","WARNING: kills cane."]
[null,null,"Wait until most of the grass weeds have germinated before spraying. It will control grass seedlings with up to six leaves but before tillering."]
[null,null,"For creeping erennial grasses, apply ONLY to broken rhizomes. Re-growth may occur on well established Cynodon dactylon and Paspalum paspalodes."]
[null,null,"Repeated applications might result in multiplication of broadleaf weeds because competition with grasses is reduced.."]
[null,"Precautions ","Avoid spray drift onto other crops or sugarcane not ready for harvesting, grazing, rivers or dams."]
[null,null,"Do not add a wetting agent, or mix with any other chemicals"]
[]
[null,"GLUFOSINATE AMMONIUM"]
[null,"HRAC Group = H","Results in accumulation of ammonia and this destroys cells"]
[null,"Weeds controlled","Broadleaf weeds, certain annual grasses, sedges, common reed."]
[null,"Multiple sprays","Cynodon dactylon (Cynodon), Panicum maximum (grass), and watergrass require multiple sprays when grass is actively growing. Refer to the label for required re-spray rates."]
[null,"Site of absorption","Foliage"]
[null,"Climatic requirements","You get optimum control if spray within 3 days after good rainfall and there are conditions promoting active growth of weed leaf area e.g. humid, warm, after rain. "]
[null,null,"Do not apply if you expect rainfall within 6 hours."]
[null,"Maximum cane size before applying as a directed spray","0 leaf. WARNING: KILLS CANE. Ensure spray does not touch cane foliage as the crop will be damaged. Direct post-emergence application between the rows in plant and ratoon cane. "]
[null,"Level of management required","Medium"]
[null,"Leaching","Normally stays in the top 15 cm of soil."]
[null,"Label band colour of worst ingredient","Yellow. Toxic and described as harmful"]
[null,"Toxicity to rats","Medium (ORAL LD50 1000-2000 mg/kg)"]
[null,"Toxicity to birds","Low (LD50 2000-20000 mg/kg)"]
[null,"Toxicity to bees","Low or no toxicity (LD50 1000 ug/BEE - NON TOXIC)"]
[null,"Toxicity to fish","Medium (LC50 50-300 mg/L)"]
[null,"Spray rate of water","300 to 800 litres per hectare. Ensure thorough wetting of foliage."]
[null,"Increase herbicide application rate according to","Weed type. If you need multiple sprays, these are at the higher rate (except for Panicum maximum). Refer to label directions."]
[null,"Comments ","Post-emergence application:"]
[null,null,"Weed growth: Apply to actively growing weeds. "]
[null,null,"Refer to the label for optimum weed growth stages."]
[null,null,"DO NOT spray stressed weeds or dormant or senescing weeds or weeds with wet foliage or weeds covered with a heavy layer of dust. For tall weeds, increase the volume of water to 800 litres per hectare and use the higher application rate (follow label directions). "]
[null,null,"Grasses: spray before seed sets. Spray when adequate leaf area is present for uptake but before grass stems lie along he ground. If re-growth occurs, re-spray at the lower rate when there is 50 to 60 % re-growth. "]
[null,null,"Cynodon dactylon: Multiple applications. Apply when adequate leaf surface area is available for uptake but before the grass becomes a recumbent mat."]
[null,null,"Cyperus: Good suppression occurs under normal growing conditions with 7.5 litres per hectare at 5 % flowering, where plants are shaded. Re-spray when sufficient leaf surface area has developed to absorb the herbicide."]
[null,null,"Length of control: This varies - suppression or complete control is achieved 2-6 weeks after spraying, depending on weed type, growth stage, vigour, climate, etc."]
[null,"Precautions ","Where the herbicide has been in contact with water, do not use for domestic purposes for at least 24 hours after spraying. "]
[null,null,"Avoid spray drift onto other crops, grazing, rivers, dams or areas not under treatment or to nearby water sources."]
[null,null,"Ensure that direct spray or drift does not come into contact with green leaves, active buds and fruit of desirable plants."]
[]
[null,"GLYPHOSATE"]
[null,"HRAC Group = G","Inhibits protein or fat synthesis and hence growth and development"]
[null,"Weeds controlled","Sugarcane and most annual and perennial weeds - non-selective."]
[null,"Expected period of control","Only kills existing weeds."]
[]
[null,null,"Variable control can occur e.g. with drought, cold or heat stress, plants with waxy layers, natural or acquired resistance to glyphosate (e.g. Commelina, Ipomoea and Conyza), poor coverage and penetration of exposed leaves, plants with bulbs and tubers e.g. Cyperus, inconsistent relationship between above soil parts and below soil parts e.g. Conyza bonariensis after dry periods or growth during the winter, and poor water quality."]
[]
[null,"Site of absorption","Foliage (green plant material)"]
[null,"Climatic requirements","You need good growing conditions for cane eradication. No rain for 6-8 hours after application. This is less for some glyphosate products, depending on product formulation. Target plants should not be suffering from moisture stress (drought or waterlogging)."]
[null,"Maximum cane size before applying as a directed spray","0 leaf. WARNING: KILLS CANE. Ensure spray does not touch cane foliage as the crop will be damaged or killed. "]
[null,null,"NOT FOR USE in field with live plant or ratoon cane."]
[null,"Level of management required","Medium - high"]
[null,"Leaching","Strongly adsorbed in soil."]
[null,"Label band colour of worst ingredient","Green-blue. Toxic and described as requiring caution"]
[null,"Toxicity to rats","Low (ORAL LD50 2000-8000 mg/kg)"]
[null,"Toxicity to birds","Low (LD50 2000-20000 mg/kg)"]
[null,"Toxicity to bees","Low (LD50 1000 ug/BEE - NON TOXIC)"]
[null,"Toxicity to fish","High (LC50 1-20 mg/L)"]
[null,"Spray rate of water","200-600 litres per hectare. Depends on weed size and density. Ensure good coverage of every shoot."]
[null,"Increase herbicide application rate according to","Weed type, weed size and weed density. Higher rates are needed for cane eradication."]
[null,"Comments ","Weeds: Only apply to actively growing weeds."]
[null,null,"Ensure that target weeds are fully exposed to spray."]
[null,null,"Dosage: Apply the dosage rate according to the weed growth stage and species. Follow label recommendations."]
[null,null,"Growing cane: Not recommended for use in fields with growing cane. You can use it in fallow cane fields with problem weeds. "]
[null,null,"Weed control: Glyphosate is useful to control Cyperus rotundus, Cyperus esculentus and grasses such as Paspalum urvillei and Cynodon dactylon. Repeat spot sprays are usually necessary for complete control."]
[null,null,"Sugarcane eradication: Apply to actively growing cane. Cane should have all buds emerged and tillered at time of spray. Only apply in summer (October to April)."]
[null,"Precautions ","WARNING: KILLS CANE."]
[null,null,"Drift: Avoid drift to all adjacent crops, plants with foliage and/or green bark, grazing, rivers, dams and areas not under treatment."]
[null,null,"Use low spray pressure (100-200 kPa) and correct nozzles and shields to avoid spray drift. "]
[null,null,"Dirt: Remove sediments, rust or dust from spray tanks."]
[null,null,"Use only clean spray-water with no suspended soil particles."]
[null,null,"Do not spray on weed foliage covered with a layer of dust or with dew, or dormant or stressed."]
[null,null,"Ammonium sulphate: must be added to treat poor quality spray-water containing salts. Add 0,5 - 2,0% ammonium sulphate in tank mixtures at all times. Always add first to the spray-tank (follow the label directions)."]
[null,null,"Surfactant: may be needed for some glyphosate products (follow label directions). The mixing order is important for these products. "]
[]
[null,"HALOSULFURON"]
[null,"HRAC Group = B","Inhibits protein or fat synthesis and hence growth and development"]
[null,"Weeds controlled","Cyperus rotundus (purple watergrass) and Cyperus  esculentus  (yellow watergrass)"]
[null,"Variable control"]
[null,"Site of absorption","Shoot uptake which improves with penetrator"]
[null,"Climatic requirements","Need moist soil and conditions for active weed growth"]
[null,"Maximum cane size before applying as a directed spray","Relatively safe on cane. Cane leaves can be 0 -1m high"]
[null,"Level of management required","Medium"]
[null,"Leaching","High leaching index"]
[null,"Label band colour of worst ingredient","Blue. Toxic and described as requiring caution."]
[null,"Toxicity to rats","Low (ORAL LD50 2000-8000 mg/kg)"]
[null,"Toxicity to birds","Low (ORAL LD50 2000-20000 mg/kg)"]
[null,"Toxicity to bees","Medium high (LD50 70-1000 ug/BEE)"]
[null,"Toxicity to fish","Medium (LC50 50-300 mg/L)"]
[null,"Spray rate of water","200-400 litres per hectare"]
[null,"Increase herbicide application rate according to","Only one application rate of 50g per hectare"]
[null,"Comments ","Post-emergence:"]
[null,null,"Ensure weeds are not overshadowed to avoid poor coverage."]
[null,null,"Add a recommended adjuvant (e.g. surfactant) for all post-emergence applications."]
[null,null,"Cyperus species: There is no pre-emergence control. For best results apply after most plants have germinated but before flowering. New germination may occur if application was done too early. Late germinating tubers require a second application before the crop canopy closes. Inferior results occur with later applications when in flower. If applications are followed by a dry period and then a wet period later in the season, regrowth of plants may occur. "]
[null,null,"Broadleaf weeds: Restricted activity on broadleaf weeds. Broadleaf weeds should be less than 4 - leaf or 100 mm in height."]
[null,null,"Grasses: No activity on grasses. "]
[null,"Precautions ","Do not apply on cane stressed by e.g. drought, flooding, disease or insect damage."]
[null,null,"Do not use on soils with a water pH of 7 or higher, and/or on soils containing free lime. "]
[null,null,"Ammonium sulphate: must be added to treat poor quality spray-water containing salts. Adding 0,5 - 2% ammonium sulphate improves weed control. Always add first to the spray-tank (follow the label directions)."]
[null,null,"Rainfall: Rain within 6 hours reduces weed control."]
[null,null,"Cultivation: Delay any cultivation until 2 - 7 days after application."]
[]
[null,"HEXAZINONE"]
[null,"HRAC Group = C1","Inhibits photosynthesis (conversion of light to chemical energy)"]
[null,"Weeds controlled","Grasses and broadleaf weeds"]
[null,"Variable control","Yellow watergrass. There is adequate control only when applied post-emergence."]
[null,"Site of absorption","Foliage and roots-absorbed with long residual action."]
[null,"Climatic requirements","Best results with warm humid conditions for active weed growth and when rainfall within a few weeks after application moves herbicide into root zone."]
[null,"Maximum cane size before applying as a directed spray","0-1 unfurled leaves. Do not apply directly over the ratoon foliage but direct the sprays across the inter-row to avoid, as far as possible, wetting the foliage. "]
[null,"Level of management required","Medium"]
[null,"Leaching","Moderately adsorbed by clay. Avoid soils with less than 0.5 % organic matter, greater than 60 % sand, and a water table that is less than 2 m below the surface the surface and annual rainfall greater than 1000 mm."]
[null,"Label band colour of worst ingredient","Yellow. Toxic and described as harmful"]
[null,"Toxicity to rats","High (ORAL LD50 280-1000 mg/kg)"]
[null,"Toxicity to birds","Low (LD50 2000-20000 mg/kg)"]
[null,"Toxicity to bees","Low or no toxicity (LD50 1000 ug/BEE - NON TOXIC)"]
[null,"Toxicity to fish","Medium (LC50 50-300 mg/L)"]
[null,"Spray rate of water","200-400 litres per hectare"]
[null,"Increase herbicide application rate according to","Clay content and season. Adhere carefully to label directions."]
[null,null,"With mid and late season you must reduce application rates."]
[null,"Comments ","Pre-very early post-emergence: "]
[null,null,"Apply before or during the period of active growth of weeds. Hexazinone controls a broad spectrum of grasses and broadleaf weeds. "]
[null,null,"Broad leaf weeds: should not be taller than 8-10cm. "]
[null,null,"Grasses: Apply at 0-4 leaf, pre-tillering stage or before the grass develops a strong root system. "]
[null,null,"Panicum maximum: If Panicum has emerged at application, add either diuron or ametryn. Ametryn is preferred for use under more cooler and drier conditions of spring. Diuron is preferred for use under warm, wet, active growing conditions. "]
[null,"Precautions ","Application rates: Adhere to label recommendations. Use correct rates, according to the season and soil type. Use lower application rates for light less absorptive soils having a low cation exchange capacity. For extremely heavy soils (usually a high cation exchange capacity) confirm actual rate with Technical Advisor."]
[null,null,"Avoid excessive overlapping of spray swaths and double spraying."]
[null,null,"Do not apply more than one in a growing season, to avoid possible accumulation."]
[null,null,"Rainfall: Rain within a few weeks after application enhances the herbicidal action. "]
[null,null,"Ratoon cane ONLY. Do not use on plant cane. "]
[null,null,"Do not mix, apply or clean equipment within 20 metres of a water source or where drift or run-off could contaminate a water source."]
[null,null,"Do not apply near desirable plants or trees or on areas where their roots may extend, or in locations where the chemical may be washed or moved into contact with their roots."]
[]
[null,"HEXAZINONE + CLOMAZONE"]
[null,"HRAC Group = F3 + C1","Inhibits photosynthesis (conversion of light to chemical energy) and development of pigments."]
[null,"Weeds controlled","Annual grasses and some broadleaf weeds"]
[null,"Variable control","Yellow watergrass"]
[null,"Site of absorption","Foliage and root absorbed herbicide with a long residual action."]
[null,"Climatic requirements","You can apply this product under both dry or moist soil conditions."]
[null,"Maximum cane size before applying as a directed spray","For good grass control, apply as soon as possible after harvesting, before weeds have germinated and at the latest, before first cane leaves are 10cm high."]
[null,"Level of management required","Medium"]
[null,"Leaching","Avoid soils with less than 0.5 % organic matter, greater than 60 % sand, and a water table that is less than 2 m below the surface the surface and annual rainfall greater than 1000 mm. "]
[null,"Label band colour of worst ingredient","Blue. Toxic and described as requiring caution"]
[null,"Toxicity to rats","Low (ORAL LD50 2000-8000 mg/kg)"]
[null,"Toxicity to birds","Low (LD50 2000-20000 mg/kg)"]
[null,"Toxicity to bees"]
[null,"Toxicity to fish","Medium (LC50 50-300 mg/L). Toxic to aquatic organisms"]
[null,"Spray rate of water","Minimum 200 litres per hectare"]
[null,"Increase herbicide application rate according to","Only apply to soils with more than 10% clay. "]
[null,null,"Only apply 2 litres per hectare. DO NOT over-apply."]
[null,"Comments ","Pre-emergence:"]
[null,null,"Apply before weeds and crop emerge. For good control of Rottboellia, Sorghum and Panicum maximum, apply as soon as possible after harvesting, before weeds have germinated and at the latest, before first cane leaves are 10cm high. "]
[null,null,"Apply DROPZONE™ 500 WP with DINAMIC® 700 WG to improve broadleaf spectrum and increase suppression of Cyperus esculentus. "]
[null,"Precautions ","Ratoon cane only."]
[null,null,"Avoid double application in one season and overlapping spray swaths. NOTE: Take extra precautions to ensure uniform spray application particularly on field edges where knapsack operators and tractor booms tend to slow down and over-apply."]
[null,null,"Do not apply more than one in a growing season, to avoid possible accumulation."]
[null,null,"Allow 400 days between the last application and harvest. Consult your supplier."]
[]
[null,"HEXAZINONE + DIURON"]
[null,"HRAC Group = C1 + C2","Inhibits photosynthesis (conversion of light to chemical energy)"]
[null,"Weeds controlled","Grasses and broadleaf weeds"]
[null,"Variable control","Yellow watergrass. There is adequate control only when applied post-emergence."]
[null,"Site of absorption","Foliage and root absorbed herbicide with a long residual action."]
[null,"Climatic requirements","Best results with warm humid conditions for active weed growth and when rainfall within 2-3 weeks after application moves herbicide into root zone."]
[null,"Maximum cane size before applying as a directed spray","0-1 unfurled leaves. Apply as a directed spray across the inter-row and avoid, as far as possible, wetting the foliage. Do not apply directly over the ratoon foliage"]
[null,"Level of management required","Medium"]
[null,"Leaching","Moderately adsorbed by clay. Avoid soils with less than 0.5 % organic matter, greater than 60 % sand, and a water table that is less than 2 m below the surface the surface and annual rainfall greater than 1000 mm.  "]
[null,"Label band colour of worst ingredient","Blue. Toxic with caution required."]
[null,"Toxicity to rats","High (ORAL LD50 280-1000 mg/kg)"]
[null,"Toxicity to birds","Medium (LD50 900-2000 mg/kg)"]
[null,"Toxicity to bees","Low or no toxicity (LD50 1000 ug/BEE - NON TOXIC)"]
[null,"Toxicity to fish","High (LC50 1-20 mg/L)"]
[null,"Spray rate of water","150-400 litres per hectare"]
[null,"Increase herbicide application rate according to","Clay content and season. For the formulations combining both herbicides, make sure you use one bag/hectare of the correct product for your soil clay content. Adhere carefully to label directions. "]
[null,"Comments ","Pre-emergence or early post-emergence: "]
[null,null,"Apply just prior to or during the period of active weed growth. "]
[null,null,"Do not exceed the recommendations given on the label. "]
[null,null,"Apply the entire contents in this bag to 1,0 hectare. "]
[null,null,"Broad leaf weeds: should not be taller than 8-10cm. "]
[null,null,"Grasses: Apply at 0-4 leaf, pre-tillering stage or before the grass develops a strong root system. "]
[null,null,"Weeds not normally controlled: Cyperus rotundus, Cynodon dactylon, Sorghum verticilliflorum, established (tillered) Panicum maximum."]
[null,"Precautions","Ratoon cane only."]
[null,null,"Avoid excessive overlapping of spray swaths and double spraying. Do not apply more than one in a growing season, to avoid possible accumulation."]
[null,null,"Water bodies: Do not allow the product to be applied directly to or drift onto water or wetlands. Do not apply within 10 m of permanent water. Do not apply where run-off from treated areas will contaminate water sources. Do not mix or load within 20 m of any water body. "]
[null,null,"Rain: Rainfall within 2 - 3 weeks after application will enhance the herbicidal activity."]
[null,null,"Spray-water: Avoid water with a high conductivity and high pH. Avoid dirty water. "]
[null,null,"Do not apply near desirable plants or trees or on areas where their roots may extend, or in locations where the chemical may be washed or moved into contact with their roots."]
[]
[null,"IMAZAPYR"]
[null,"HRAC Group = B","Inhibits protein or fat synthesis and hence growth and development"]
[null,"Weeds controlled","Broad–spectrum, non–selective herbicide to control grasses, broadleaf and sedges. It also kills volunteer or last ratoon cane."]
[null,"Variable control"]
[null,"Site of absorption","Foliage and root absorbed herbicide with a long residual action."]
[null,"Climatic requirements","Need moist soil and conditions for active weed growth"]
[null,"Maximum cane size before applying as a directed spray","0 leaf. WARNING: KILLS CANE. Ensure spray does not touch cane foliage as the crop will be damaged or killed. "]
[null,null,"NOT FOR USE in field with live plant or ratoon cane."]
[null,"Level of management required","High (persistence)"]
[null,"Leaching","High leaching."]
[null,"Label band colour of worst ingredient","Blue. Toxic with caution required."]
[null,"Toxicity to rats","Low (ORAL LD50 2000-8000 mg/kg)"]
[null,"Toxicity to birds","Low (ORAL LD50 2000-20000 mg/kg)"]
[null,"Toxicity to bees","Medium high (LD50 70-1000 ug/BEE)"]
[null,"Toxicity to fish","Medium (LC50 50-300 mg/L). Toxic to aquatic plants."]
[null,"Spray rate of water","A minimum of 300 litres per hectare"]
[null,"Increase herbicide application rate according to","Do not increase recommended dosage. Ensure correct registration."]
[null,"Comments ","Fallow fields: Apply imazapyr after harvesting the final ratoon and once re–growth of the sugarcane and weeds has occurred. Apply when cane is 30 – 45 cm tall, fully emerged and actively growing. "]
[null,null,"Reduced efficacy: Caused by A) Application to stressed plants. Both sugarcane and weeds should be actively growing at the time of application and not wilted or stressed. B) Weeds should not be shielded by tall weeds or the sugarcane canopy. Ensure proper coverage of the target with the spray solution. C) Any mechanical soil operation before application that results in clods on the soil surface (e.g. ripping). D) Any mechanical operation resulting in soil disturbance after application. E) Frequent and /or heavy rainfall incidences, especially on sandy soils."]
[null,null,"Replanting: After the application of imazapyr, sugarcane can ONLY be replanted after a minimum waiting period of at least four months AND after the occurrence of at least 600 mm precipitation (preferably rain) during the warmer months of the year."]
[null,null,"Persistence: "]
[null,null,"Do not apply imazapyr more than once in a normal replant cycle."]
[null,null,"ONLY re-spray with spot treatment(s) of glyphosate at the registered rate (refer to the applicable label), after applying imazapyr. DO NOT spot-spray with imazapyr."]
[null,null,"Soil degradation is mainly due to naturally occurring soil micro–organisms. The rate of degradation increases as soil pH increases. Persistence is greater on low pH (acid) soils (pH < 6.0). Liming increases pH and can release additional imazapyr from clay colloids. This will temporarily elevate the available concentration in the soil until degradation by the soil micro–organisms occurs. Planting too soon after liming may damage the newly planted crop. Allow at least 12 weeks between liming and replant. A test planting with single–eye setts is always advisable. Once cane is planted, normal irrigation accelerates degradation of remaining residues."]
[null,"Precautions ","Do not apply imazapyr to the root zone of desirable vegetation or within twice the drip line of a tree canopy. Avoid spray drift onto non-target areas and plants, other crops, grazing, rivers and dams. Rain, two hours after application, will not reduce efficacy."]
[null,null,"Use suitably shielded nozzles. Avoid overlapping spray swaths."]
[]
[null,"ISOXADIFEN-ETHYL + TEMBOTRIONE"]
[null,"HRAC Group = F2","Inhibits development of pigments"]
[null,"Weeds controlled","Post-emergence control of certain broadleaf and grass weeds"]
[null,"Variable control"]
[null,"Site of absorption","Foliage of small weed seedlings"]
[null,"Climatic requirements","Need moist soil and conditions for active weed growth"]
[null,"Maximum cane size before applying as a directed spray","May cause chlorosis and stunting of cane plants. This is transitory and yield will not be affected, provided that label directions are followed carefully."]
[null,"Level of management required","High (atrazine leaching)"]
[null,"Leaching","High leaching in sandy and wet soils"]
[null,"Label band colour of worst ingredient"]
[null,"Toxicity to rats"]
[null,"Toxicity to birds"]
[null,"Toxicity to bees"]
[null,"Toxicity to fish","Very toxic to aquatic life with long-lasting effects."]
[null,"Spray rate of water","200-300 litres per hectare"]
[null,"Increase herbicide application rate according to","Do not increase application rate. Follow label recommendations"]
[null,"Comments ","Post-emergence:"]
[null,null,"Apply when weeds are between 4-6 leaf growth stage and are actively growing. Requires a recommended surfactant."]
[null,"Precautions ","Do not allow to get into surface water, drains and ground water. The mixing partner, atrazine is not generally recommended by SASRI due to leaching risk and bio-accumulation. Atrazine is particularly mobile in irrigated areas. Consider using alternative products with lower environmental risk. Repeated or prolonged use can lead to bio-accumulation in the water course environment. "]
[null,null,"Do not mix or load within at least 15 metres of boreholes, streams and rivers or at least 60 metres from dams. "]
[null,null,"Do not apply near the roots of desirable plants."]
[null,null,"Constant agitation throughout the spray operation is essential."]
[null,null,"Contact your local agro-chemical supplier for correct use. "]
[null,null,"Add required amount of the salt adjuvant ammonium sulphate."]
[null,null,"Add a recommended surfactant."]
[null,null,"Ensure even coverage of weeds."]
[null,null,"Do not use plants as fodder from treated cane within 235 days of last application."]
[null,null,"Avoid spray drift onto other crops, grazing, rivers and dams"]
[null,null,"Avoid excessive overlapping of spray swathes and double spraying."]
[]
[null,"ISOXAFLUTOLE"]
[null,"HRAC Group = F2","Inhibits development of pigments"]
[null,"Weeds controlled","Grasses and broadleaf weeds"]
[null,"Variable control"]
[null,"Site of absorption","Seeds, roots and shoots"]
[null,"Climatic requirements","Application should preferably be performed onto moist soil and rain or irrigation is required within one week after application."]
[null,null,"Can be applied to dry soil when temperatures become suitable for weed germination. It is stable under dry conditions (no photo-degradation) and is activated by rainfall."]
[null,"Maximum cane size before applying as a directed spray","0-4 unfurled leaves. Apply pre-emergence of the weeds, at spiking, but no later than the 4-leaf stage of the cane. "]
[null,"Level of management required","High"]
[null,"Leaching","Low – Medium, less than most acetanilides"]
[null,"Label band colour of worst ingredient","Blue. Toxic and described as requiring caution"]
[null,"Toxicity to rats","Low (ORAL LD50 2000-8000 mg/kg)"]
[null,"Toxicity to birds","Low (LD50 2000-20000 mg/kg)"]
[null,"Toxicity to bees","Medium-high toxicity (LD50 70-1000 ug/BEE)"]
[null,"Toxicity to fish","Medium (LC50 50-300 mg/L)"]
[null,"Spray rate of water","100-400 litres per hectare"]
[null,"Increase herbicide application rate according to","Clay content. "]
[null,"Comments ","Can be combined with diuron, ametryn, hexazinone or paraquat."]
[null,null,"Does not control Cyperus species or perennial weeds with established root systems. "]
[null,"Precautions ","Not for use on plant cane. "]
[null,null,"Can be used on dryland cane and on cane under scheduled irrigation. Not for use on soils of less than 10% clay. "]
[null,null,"Not for use on dry crop residue (trash) that may be blown by wind. Ensure application of correct dosage. "]
[null,null,"Avoid double application, e.g., overlapping spray swaths. "]
[null,null,"Do not use on stony soil. "]
[null,null,"Do not use on soils that contain less than 10 % clay. "]
[null,null,"Use on newly limed soil can cause crop chlorosis."]
[null,null,"Efficacy may be reduced when spray-water contains high levels of chlorine."]
[null,null,"Do not add any adjuvants to the spray mixture."]
[null,null,"Prevent spray drift onto other crops, grazing, rivers, dams or other areas not under treatment."]
[null,null,"Isoxaflutole may remain active for much longer in soils which expand when wetted and crack or crumble upon drying. "]
[null,null,"See also label precautions."]
[]
[null,"ISOXAFLUTOLE + INDAZIFLAM"]
[null,"HRAC Group = L29 & F2","Isoxaflutole inhibits development of pigments. Indaziflam is a cellulose biosynthesis inhibitor. It severely affects cell wall formation as well as cell elongation and cell division in seeds."]
[null,"Weeds controlled","Certain broadleaf and grass weeds."]
[null,"Variable control"]
[null,"Site of absorption","Pre-emergence application for uptake by seeds. Germinating weed seeds die before emerging."]
[null,"Climatic requirements"]
[null,"Maximum cane size before applying as a directed spray","0-unfurled leaves. Apply pre-emergence."]
[null,"Level of management required","Medium"]
[null,"Leaching","Moderately mobile in soils. Not rapidly biodegradable. "]
[null,null,"Does not bioaccumulate"]
[null,"Label band colour of worst ingredient"]
[null,"Toxicity to rats","Very high (ORAL LD50 48-160 mg/kg)"]
[null,"Toxicity to birds","Low (LD50 2000-20000 mg/kg)"]
[null,"Toxicity to bees","Low or no toxicity (LD50 1000 ug/BEE - NON TOXIC)"]
[null,"Toxicity to fish","High (LC50 1-20 mg/L). "]
[null,null,"Very toxic to aquatic life with long lasting effects."]
[null,"Spray rate of water","200-300 litres per hectare"]
[null,"Increase herbicide application rate according to","Do not increase dosage rate. Apply at 333 ml per hectare."]
[null,"Comments ","Pre-emergence:"]
[null,null,"ONLY on ratoon cane. Do not use on plant cane."]
[null,null,"Apply pre-emergence of the weeds. It controls certain broadleaf species and grass weeds such as Panicum maximum and Rottboellia. Do not apply to sugarcane under any form of stress, as it is likely to display chlorosis. Do not use plants from treated sugarcane within 250 days after application. A 12 month waiting period is required between application and planting sugarcane."]
[]
[null,"Precautions ","Avoid double application, e.g., overlapping spray swaths. "]
[null,null,"Do not use on stony soil or soils that contain less than 10 % clay."]
[null,null,"Application on newly limed soil can cause crop chlorosis."]
[null,null,"Do not use spray-water containing high levels of chlorine."]
[null,null,"Do not mix the product with any other products."]
[null,null,"Use the spray mixture within 6 hours after mixing. "]
[null,null,"Continue agitation to keep the product in continuous suspension. "]
[null,null,"After each spray, flush the tank out thoroughly with water. "]
[null,null,"Accurately calibrate spray equipment prior to application."]
[null,null,"Where application is to soils which expand when wetted and crack or crumble upon drying, the product may remain active in the soil for much longer than the above waiting periods might indicate. "]
[null,null,"Prevent spray drift onto other crops, grazing, rivers, dams or other areas not under treatment. Do not apply where the roots of desirable plants might absorb the chemical."]
[]
[null,"MCPA"]
[null,"HRAC Group = O","Inhibits cell division and development through other pathways"]
[null,"Weeds controlled","Broadleaf"]
[null,"Variable control"]
[null,"Site of absorption","Foliage and roots"]
[null,"Climatic requirements","You need moist soil and conditions for active weed growth"]
[null,"Maximum cane size before applying as a directed spray","0-5 unfurled leaves. The treatment can cause sugarcane damage. If the sugarcane exceeds a height of 40 cm or has unfurled more than 5 leaves/shoot, directed spraying must be carried out or else the growth may be retarded."]
[null,"Level of management required","Medium"]
[null,"Leaching","Medium - high leaching in sandy and wet soils"]
[null,"Label band colour of worst ingredient","Yellow. Toxic and described as harmful"]
[null,"Toxicity to rats","High (ORAL LD50 280-1000 mg/kg)"]
[null,"Toxicity to birds","High (ORAL LD50 280-1000 mg/kg)"]
[null,"Toxicity to bees","Low or no toxicity (LD50 1000 ug/BEE - NON TOXIC)"]
[null,"Toxicity to fish","Medium-high (LC50 1-20 mg/L)"]
[null,"Spray rate of water","300-400 litres per hectare"]
[null,"Increase herbicide application rate according to","Clay content"]
[null,"Comments ","Pre-emergence:"]
[null,null,"Apply to damp seedbed free of emerged weeds, immediately after the crop has been planted. "]
[null,null,"Annual grasses: Apply before emergence of the grass seedlings. Apply MCPA in combination alachlor or with metolachlor + ametryn to improve control of grasses."]
[null,null,"Post-emergence: "]
[null,null,"The weeds should still be young. Use the lower dosage if the weeds have not progressed beyond the 4-leaf stage."]
[null,null,"Broadleaf, grasses and Cyperus species: Apply MCPA in combination with diuron or ametryn to control a wider spectrum of broad-leaved weeds, young grasses and Cyperus species. Cyperus esculentus will be controlled if sprayed just before flowering. Variable results may be obtained if sprayed earlier or during cold or dry weather conditions"]
[null,null,"Salt adjuvant: MCPA benefits from treatment of dissolved cation salts with ammonium sulphate. Note: ammonium sulphate is not registered to be used with MCPA in South Africa."]
[null,null,"Surfactant: Add a recommended surfactant if stated on the label."]
[null,"Precautions ","Do not use near other crops such as bananas, tomatoes and grains. Prevent drift by adhering to spray procedures."]
[]
[null,"MESOTRIONE"]
[null,"HRAC Group = F2","Inhibits development of pigments"]
[null,"Weeds controlled","Annual grasses and some broadleaf weeds"]
[null,"Variable control","Certain larger weeds. Refer to the labels"]
[null,"Site of absorption","Mainly through germinating shoots of grasses and roots of broadleaf weeds"]
[null,"Climatic requirements","For best results, 10-15mm of rain is required within 7-10 days of application to activate the herbicide in the soil. Avoid stress conditions such as drought, heavy rain and water logging."]
[null,"Maximum cane size before applying as a directed spray","0-3 unfurled leaves. "]
[null,"Level of management required","Medium"]
[null,"Leaching","Medium-very high leaching potential. Adsorbed in soils with high clay and organic matter contents. Higher pH levels increase rate of adsorption."]
[null,"Label band colour of worst ingredient","Blue. Toxic and described as requiring caution"]
[null,"Toxicity to rats","Low (ORAL LD50 2000-8000 mg/kg)"]
[null,"Toxicity to birds","Low (LD50 2000-20000 mg/kg) (technical)"]
[null,"Toxicity to bees","Medium-high toxicity (LD50 70-1000 ug/BEE)"]
[null,"Toxicity to fish","Medium (LC50 50-300 mg/L) (technical)"]
[null,"Spray rate of water","Minimum 200-300 litres per hectare"]
[null,"Increase herbicide application rate according to","The dosage rate is not affected by the clay content of the soil. "]
[null,"Comments ","Pre- and early post-emergence:"]
[null,null,"Broadleaf weeds and grasses: "]
[null,null,"Apply mesotrione in combination with diuron and S-metolachlor. Add a recommended surfactant for post-emergence application. "]
[null,null,"Cyperus esculentus, Panicum maximum and other grasses: "]
[null,null,"Apply mesotrione in combination with diuron and S-metolachlor. Add paraquat for post-emergence control. "]
[null,null,"Post-emergence: "]
[null,null,"Apply to the true leaves of weeds, not cotyledons (seed leaves not true leaves). Apply on actively growing weeds. "]
[null,null,"Apply the product during the late spring and summer season when the chance of rain is high. Do not apply during seasons when no or little rain is expected. "]
[null,null,"Cyperus esculentus and Cyperus rotundus: Apply mesotrione in combination with halosulfuron and a recommended surfactant. For best results apply after most Cyperus plants have germinated but before flowering. "]
[null,"Precautions ","Avoid overlapping swaths. Follow instructions on label."]
[null,null,"Prevent drift to adjacent crops. Avoid smaller droplet sizes that are prone to drift. Soil disturbance after both pre- and/or post-emergence applications can result in re-germination of weeds resulting in reduced weed control. Prolonged dry soil conditions after application may result in reduced control of germinating weeds. "]
[]
[null,"MESOTRIONE + S-METOLACHLOR + TERBUTHYLAZINE"]
[null,"HRAC Group = C1 + F2 + K3","Inhibits photosynthesis (conversion of light to chemical energy), development of pigments, and protein or fat synthesis and hence growth and development"]
[null,"Weeds controlled","Annual grasses and some broadleaf weeds"]
[null,"Variable control","Yellow watergrass"]
[null,"Site of absorption","Mainly through germinating shoots of grasses and roots of broadleaf weeds"]
[null,"Climatic requirements","Rain or overhead irrigation 15-20 mm within 1-2 weeks after application is required to leach the chemical into the germinating zone to obtain optimal weed control. If this does not happen, reduced efficacy can be expected."]
[null,"Maximum cane size before applying as a directed spray","Post-emergence applications when combined with paraquat may cause foliar scorch and stunting if the cane has more than 2-3 leaves per shoot."]
[null,"Level of management required","Medium"]
[null,"Leaching","Adsorbed in soils with high clay and organic matter contents. Extent of leaching depends on organic matter."]
[null,"Label band colour of worst ingredient","Yellow. Toxic and described as harmful"]
[null,"Toxicity to rats","Low (ORAL LD50 2000-8000 mg/kg)"]
[null,"Toxicity to birds","Low (ORAL LD50 2000-20000 mg/kg)"]
[null,"Toxicity to bees","Medium high (LD50 70-1000 ug/BEE)"]
[null,"Toxicity to fish","Medium (LC50 50-300 mg/L). "]
[null,null,"Toxic to fish and other aquatic organisms"]
[null,"Spray rate of water","Minimum 200-300 litres per hectare."]
[null,"Increase herbicide application rate according to","The clay content of soil does not affect the dosage rate."]
[null,"Comments ","The product has no post-emergence activity"]
[null,null,"Pre-emergence:"]
[null,null,"Apply product preferably at planting or immediately after planting. The product will control broadleaf weeds and grasses. For Cyperus esculentus, apply to soil before tubers begin to germinate. "]
[null,null,"Pre- and very early post emergence application:"]
[null,null,"In all early post-emergence applications use a recommended adjuvant as surfactant. Weeds must not be larger than 1 to 2 leaf stage at time of application."]
[null,null,"Grasses and Cyperus species: A recommended paraquat must be added for post-emergence control, especially where there is Panicum maximum and Cyperus esculentus. "]
[null,null,"Apply the product in combination with S-metolachlor plus paraquat to increase the residual grass control. "]
[null,null,"Avoid overlapping swaths. Product requires continuous agitation. "]
[null,null,"Do not apply product to high organic matter soils (>3 %) or on to soils with excessive trash or burnt sugarcane rubble, as reduced residual action can be expected."]
[null,null,"Prevent drift onto other crops, grazing, rivers, dams and areas not under treatment or to nearby water sources."]
[null,null,"Apply product during the late spring and summer season when chances of rain is high."]
[null,null,"Do not use the product with other HPPD inhibitors/ F2 group (e.g. products containing isoxaflutole, mesotrione or sulcotrione within the same growing season."]
[]
[null,"METAZACHLOR"]
[null,"HRAC Group = K3","Inhibits protein or fat synthesis and hence growth and development"]
[null,"Weeds controlled","Annual grasses and a range of broadleaf weeds;"]
[null,"Variable control","Yellow watergrass"]
[null,"Site of absorption","Mainly germinating seeds of grasses. "]
[null,"Climatic requirements","You need about 15 mm rain or sprinkler irrigation as soon as possible after application and before any weeds emerge."]
[null,"Maximum cane size before applying as a directed spray","0-5 unfurled leaves. Pre-emergence (of sugarcane) applications are unlikely to have any effects on sugarcane. Where paraquat is added, take care to adhere to instructions relating to directed / inter-row spraying as this product combination can cause severe scorching or damage to emerging sugar cane. "]
[null,"Level of management required","Medium"]
[null,"Leaching","Very high leaching potential."]
[null,"Label band colour of worst ingredient","Blue. Toxic and described as requiring caution"]
[null,"Toxicity to rats","Low (ORAL LD50 2000-8000 mg/kg)"]
[null,"Toxicity to birds","Low (LD50 2000-20000 mg/kg)"]
[null,"Toxicity to bees","Low or no toxicity (LD50 1000 ug/BEE - NON TOXIC)"]
[null,"Toxicity to fish","High (LC50 1-20 mg/L). Toxic to fish and aquatic organisms."]
[null,"Spray rate of water","More than 200 litres per hectare"]
[null,"Increase herbicide application rate according to","Due to high leaching risk, follow label directions. Do not over-apply"]
[null,"Comments ","Pre and early post-emergence:"]
[null,null,"Metazachlor controls grasses and some broadleaf weeds when applied before germination of those weeds. Weeds that have already emerged at the time of application will not be controlled and must be removed either by hand or mechanically."]
[null,null,"For pre-emergence control, combine the product with diuron or ametryn. The dosage rate of ametryn depends on the growth stage and intensity of weeds. "]
[null,null,"For early post-emergence control, combine the product with diuron or ametryn PLUS paraquat."]
[null,null,"A suitable wetter / sticker should be added to all post emergence treatments. "]
[null,"Precautions ","Prevent leaching in soils."]
[null,null,"Avoid drift of spray onto other crops, grazing, rivers, dams and areas not under treatment. "]
[null,null,"Do not apply to poorly drained soils or soils with a compaction layer since the product may cause damage to the crops under waterlogged or supersaturated conditions. "]
[null,null,"A functional agitator is an essential requirement. "]
[]
[null,"METOLACHLOR AND S-METOLACHLOR"]
[null,"HRAC Group = K3","Inhibits protein or fat synthesis and hence growth and development"]
[null,"Weeds controlled","Pre-emergence control of annual grasses and, under certain conditions, also yellow watergrass."]
[null,"Variable control","Yellow watergrass"]
[null,"Site of absorption","Mainly through germinating shoots of grasses and roots of broadleaf weeds"]
[null,"Climatic requirements","You need 10-20 mm rain within 7-10 days after spray"]
[null,"Maximum cane size before applying as a directed spray","Metolachlor is safe to use before cane emerges. Direct spray between cane rows after the 3 leaf stage if combined with paraquat and the 5-leaf stage if there is no paraquat."]
[null,"Level of management required","Medium"]
[null,"Leaching","Adsorbed in soils with high clay and organic matter content."]
[null,null,"The extent of leaching depends on organic matter. "]
[null,"Label band colour of worst ingredient","Yellow. Toxic and described as harmful"]
[null,"Toxicity to rats","Low (ORAL LD50 2000-8000 mg/kg)"]
[null,"Toxicity to birds","Low (LD50 2000-20000 mg/kg)"]
[null,"Toxicity to bees","Medium-high toxicity (LD50 70-1000 ug/BEE)"]
[null,"Toxicity to fish","High toxicity to fish (LC50 1-20 mg/L). Toxic to fish"]
[null,"Spray rate of water","Minimum 200 litres per hectare"]
[null,"Increase herbicide application rate according to","Increase metolachlor application rate on soils with more than 35 % clay and on all soil types where P. maximum is a problem and/or for improved control of C. esculentus and/or for longer residual control. Apply highest rate if the soil organic matter content exceeds 1 %, and the clay content exceeds 35 %."]
[null,"Comments ","S-Metolachlor has more biological activity than metolachlor, resulting in lower application rates. The registered rate of S-metolachlor is 35% lower than the registered rate of metolachlor (based on the active ingredient)."]
[null,null,"Pre-emergence:"]
[null,null,"Apply preferably at planting or immediately after planting, but not later than three days after planting. For good broadleaf control, combine metolachlor with ametryn or hexazinone. The latter treatment can only be applied in ratoon cane and only when good rain occurs before weeds emerge. To control yellow watergrass, chemical should be in the soil before tubers begin to germinate."]
[null,null,"Post-emergence:"]
[null,null,"Metolachlor has no post-emergence activity. Metolachlor can be combined with MCPA plus ametryn plus a recommended surfactant for control of emerged broadleaf weeds. For emerged Panicum maximum and other grasses, combine with ametryn or diuron (plus paraquat or with metribuzin plus paraquat."]
[null,"Precautions ","Do not apply to poorly drained soils or soils with a compaction layer, as herbicide injury may occur. Heavy rain (25 mm per day or 50 mm over a 3- to 7-day period) on very sandy soils (< 15 % clay) low in organic matter (< 1 %) can reduce weed control."]
[null,null,"Use an efficient agitation mechanism."]
[null,null,"Add metolachlor last in tank mixtures and mix thoroughly."]
[]
[null,"METRIBUZIN"]
[null,"HRAC Group = C1","Inhibits photosynthesis (conversion of light to chemical energy)"]
[null,"Weeds controlled","Annual grasses and broadleaf weeds"]
[null,"Variable control","Yellow watergrass"]
[null,"Site of absorption","Mainly through roots but also through foliage"]
[null,"Climatic requirements","You need 10-15 mm rain within 5-10 days after spray. Ideally conditions should be warm and optimal for plant growth."]
[null,"Maximum cane size before applying as a directed spray","0-5 unfurled leaves. Generally, metribuzin has little effect on plant or ratoon cane growth, and the mixture with diuron is also safe."]
[null,"Level of management required","Medium"]
[null,"Leaching","Very high leaching in sandy soils with low organic matter. Moderately adsorbed in soils with high clay and organic matter contents. Adsorption decreases as pH increases. "]
[null,"Label band colour of worst ingredient","Blue. Toxic and described as requiring caution"]
[null,"Toxicity to rats","Medium (ORAL LD50 1000-2000 mg/kg)"]
[null,"Toxicity to birds","High (LD50 200-900 mg/kg)"]
[null,"Toxicity to bees","Medium-high toxicity (LD50 70-1000 ug/BEE)"]
[null,"Toxicity to fish","Medium (LC50 50-300 mg/L)"]
[null,"Spray rate of water","200-300 litres per hectare"]
[null,"Increase herbicide application rate according to","Clay content. "]
[null,"Comments ","Pre-emergence:"]
[null,null,"Metribuzin plus diuron will suppress Cyperus esculentus. For control of grasses and especially Panicum maximum, application should be done pre emergence. Cyperus rotundus and Solanum nigrum are normally not controlled."]
[null,null,"Post-emergence: "]
[null,null,"Spray grass weeds (especially Panicum maximum) before the 2–3 leaf stage and broadleaf weeds before the 4–6 leaf stage. Add paraquat at the recommended rate to metribuzin plus diuron or to metribuzin plus ametryn to enhance efficacy, particularly where Panicum maximum is a problem."]
[null,"Precautions","Heavy rains following application will cause leaching of the product and a decrease in the efficacy. "]
[null,null,"Plant residues or stubble (mulch) covering the soil, may adversely affect efficacy."]
[null,null,"Do not apply on soils with less than 6% clay, because it is likely that nematicides will be used and interactions can occur"]
[]
[null,"METRIBUZIN + CHLORIMURON-ETHYL"]
[null,"HRAC Group = C1 + B","Inhibits photosynthesis (conversion of light to chemical energy), cell division and protein or fat synthesis and hence growth and development "]
[null,"Weeds controlled","Sedges, broadleaf weeds and some grasses"]
[null,"Variable control"]
[null,"Site of absorption","Foliage and roots"]
[null,"Climatic requirements","You need moist soil then >20 mm rain within 1-3 days after spray. "]
[null,"Maximum cane size before applying as a directed spray","0 unfurled leaves. It can be phytotoxic to sugarcane and therefore should be applied as soon after planting or harvesting as possible. Apply as a directed inter-row spray, avoid foliar contact and excessive overlapping"]
[null,"Level of management required","Medium"]
[null,"Leaching","Very high leaching. Moderately adsorbed in soils with high clay and organic matter contents."]
[null,"Label band colour of worst ingredient","Blue. Toxic and described as requiring caution"]
[null,"Toxicity to rats","Medium  (ORAL LD50 1000-2000 mg/kg)"]
[null,"Toxicity to birds","High (LD50 200-900 mg/kg)"]
[null,"Toxicity to bees","Very high (LC50 0.023-1.0 mg/L)"]
[null,"Toxicity to fish","Medium (LC50 50-300 mg/L). "]
[null,null,"Toxic to fish and other aquatic organisms."]
[null,"Spray rate of water","200-400 litres per hectare"]
[null,"Increase herbicide application rate according to","Clay content. Do not exceed label recommendations."]
[null,"Comments ","Pre-emergence:"]
[null,null,"Only a few grasses are controlled by this product. For purple watergrass, apply before any signs of emergence, immediately after planting or after harvesting. Soil disturbance before spraying, e.g. discing before planting or cultivating ratoon interrows breaks up tuber chains and results in uniform growth more susceptible to control. However, it also spreads tubers in the field."]
[null,null,"Post-emergence:"]
[null,null,"Use a recommended surfactant. Failure to include a surfactant may significantly reduce efficacy. "]
[null,null,"Broad leaf weeds: Apply pre-emergence to early post emergence but not later than the 4-leaf stage of development. Application after the 4-leaf stage may be too late for effective control. "]
[null,null,"Grasses and yellow watergrass: Apply pre-emergence to early post emergence but not later than the 3 leaf stage of development. Application to tillered grasses will be too late for effective control. "]
[null,null,"Purple watergrass: Applications made post-emergence will result in partial control (60 %) only."]
[null,"Precautions ","Do not spray in stressed cane. Crop damage may occur if the recommended dosage rates are exceeded. Lengthy wet or cold conditions soon after application may result in leaf chlorosis. Cool, dry conditions prevailing after treatment may reduce efficacy. "]
[null,null,"Avoid soils with poor drainage or compacted conditions. Avoid soils with exceptional high clay content, high cation exchange capacities and exceptionally high organic matter. Avoid leaching, especially in sandy soils with low organic matter. Extended residual activity may result when applied to soils with a water pH above 7.0 and/or soils containing free lime or if more than one application is made in the same season. The product usually works better in sandy soil, but interaction may occur with nematicides. "]
[null,null,"Rainfall within 2 hours reduces efficacy on emerged weeds."]
[null,null,"Always keep the spray mixture agitated."]
[null,null,"Do not spray on or near desirable trees or plants or where their"]
[null,null,"roots may extend or could come in contact with the herbicide."]
[]
[null,"METRIBUZIN + DIURON"]
[null,"HRAC Group = C1 + C2","Inhibits photosynthesis (conversion of light to chemical energy)"]
[null,"Weeds controlled","Annual grasses and broadleaf weeds"]
[null,"Variable control","Yellow watergrass"]
[null,"Site of absorption","Mainly through roots but also through foliage"]
[null,"Climatic requirements","You need moist soil then 15-20 mm rain within 7 days after spray"]
[null,"Maximum cane size before applying as a directed spray","0-5 unfurled leaves. Relatively safe but recommended that the product be applied as a directed spray in the inter-row area. "]
[null,null,"High rates can affect cane growth of most varieties."]
[null,"Level of management required","Medium"]
[null,"Leaching","Very high leaching in sandy soils with low organic matter. Moderately adsorbed in soils with high clay and organic matter contents. Adsorption decreases as pH increases. "]
[null,"Label band colour of worst ingredient","Blue. Toxic and described as requiring caution"]
[null,"Toxicity to rats","Medium (ORAL LD50 1000-2000 mg/kg)"]
[null,"Toxicity to birds","High (LD50 200-900 mg/kg)"]
[null,"Toxicity to bees","Medium high toxicity (LD50 70-1000 ug/BEE)"]
[null,"Toxicity to fish","High (LC50 1-20 mg/L)"]
[null,"Spray rate of water","200-300 litres per hectare"]
[null,"Increase herbicide application rate according to","Clay content. "]
[null,"Comments ","Preferably apply pre-emergence or at the latest, very early post-emergence of the weeds. Broadleaf weeds must not be taller than 3-5 cm at time of application. If grasses are present, apply before tillering and preferably before plants are beyond the 2-leaf stage. "]
[null,null,"Where these weeds have developed further, add paraquat to the spray mixture at the recommended rate."]
[null,"Precaustions","Avoid excessive overlapping of spray swaths and double spraying. "]
[null,null,"Do not apply near desirable plants or trees."]
[null,null,"Prevent application directly to or drift onto water or wetlands. "]
[null,null,"Do not apply within 10 m of permanent water. Do not apply where run-off from treated areas will contaminate water sources. "]
[null,null,"Do not mix or load within 20 m of any water body. "]
[null,null,"Heavy rains following application can cause leaching of the product. Plant residues or stubble (trash) covering the soil may adversely affect efficacy. Metribuzin mixtures are not recommended on soils with less than 5% clay, because it is likely that nematicides will be used and interactions can occur"]
[]
[null,"MSMA"]
[null,"HRAC Group = Z","Unknown mode of action"]
[null,"Weeds controlled","Grasses (including Panicum maximum and Rottboellia conchinchinensis)"]
[null,"Variable control"]
[null,"Site of absorption","Foliage. Kills existing weeds only - no residual control."]
[null,"Climatic requirements","Hot and humid conditions"]
[null,"Maximum cane size before applying as a directed spray","MSMA scorches contacted cane foliage severely and retards cane growth. Severe cases may result in some yield loss, but if growing conditions are favourable the crop will recover before harvest. Always direct spray away from cane foliage."]
[null,"Level of management required","Medium"]
[null,"Leaching","Almost completely inactivated by adsorption in the soil"]
[null,"Label band colour of worst ingredient","Yellow. Toxic and described as harmful"]
[null,"Toxicity to rats","High (ORAL LD50 280-1000 mg/kg). "]
[null,null,"Can be highly toxic to wildlife and grazing stock. "]
[null,"Toxicity to birds","Medium (LD50 900-2000 mg/kg)"]
[null,"Toxicity to bees","Medium-high toxicity (LD50 70-1000 ug/BEE). "]
[null,null,"Can be toxic to bees."]
[null,"Toxicity to fish","Low (LC50 1800 mg/L - NON TOXIC)"]
[null,"Spray rate of water","300-500 litres per hectare"]
[null,"Increase herbicide application rate according to"]
[null,"Comments ","MSMA controls large tillered grasses at the following heights: "]
[null,null,"Rottboellia conchinchinensis (10-50 cm), "]
[null,null,"Panicum and Digitaria spp., Sorghum verticilliflorum (10-30 cm), "]
[null,null,"Urochloa panicoides: less than 3 cm."]
[null,null,"Sorghum bicolor and Eleusine indica (10-30 cm) are severely suppressed. Perennial stools of Panicum species may not be completely killed and may require follow-up spray on regrowth."]
[null,null,"Mixtures with diuron or ametryn improve control of grasses. "]
[null,null,"Cyperus spp.: pre-flowering to flowering is severely suppressed. A repeat application may be necessary when chlorotic watergrass plants show signs of greening up after the first application."]
[null,null,"Some MSMA formulations contain a surfactant in a concentration that provides best results. It is not necessary to add additional surfactants to the spray tank. Follow the label. "]
[null,null,"Prevent pollution of water sources that are utilized for drinking. Do not spray on overcast or cloudy days. Apply during warm, sunny weather when weeds are in an active stage of growth. (Best results are obtained at air temperatures above 21 °C). "]
[null,null,"Do not apply if the weeds are wet or if rain is expected within 24 hours after application as this may reduce efficacy."]
[null,null,"Avoid spray drift onto other crops, grazing rivers or dams. "]
[]
[null,"PARAQUAT"]
[null,"HRAC Group = D","Inhibits transfer of chemical energy to sugar"]
[null,"Weeds controlled","Annual grasses and broadleaf weeds"]
[null,"Variable control","Yellow and purple watergrass. Suppression only."]
[null,"Site of absorption","No persistence in soil. Only kills existing weeds. Only acts on foliage. A contact chemical, not systemic so translocation into weeds is limited."]
[null,"Climatic requirements","No rain during spraying."]
[null,"Maximum cane size before applying as a directed spray","Paraquat causes severe scorching to cane foliage. "]
[null,null,"Application over cane with more than three unfurled leaves per shoot will set it back."]
[null,null,"Ratoon cane: Direct paraquat and mixtures containing paraquat away from cane foliage."]
[null,null,"Plant cane: Apply paraquat and mixtures containing paraquat preferably no later than the spike stage of growth. Read the label."]
[null,null,"Spot-spraying: Paraquat can be used for spot-spraying, preferably with shields to protect the cane."]
[null,"Level of management required","High (health and safety)"]
[null,"Leaching","Inactivated by  soil binding"]
[null,"Label band colour of worst ingredient","Yellow-Red. Highly toxic and described as  requiring extreme caution"]
[null,"Toxicity to rats","Very high (ORAL LD50 48-160 mg/kg). Toxic in contact with skin and if swallowed. Very toxic by inhalation."]
[null,"Toxicity to birds","High (ORAL LD50 280-1000 mg/kg)"]
[null,"Toxicity to bees","Low or no toxicity (LD50 1000 ug/BEE - NON TOXIC)"]
[null,"Toxicity to fish","High toxicity to fish (LC50 1-20 mg/L). Very toxic to aquatic organisms, may cause long-term adverse effects in the aquatic environment."]
[null,"Spray rate of water","Spray water rate depends on weed size and density"]
[null,"Increase herbicide application rate according to","For example, size and density of weeds."]
[null,"Comments ","Paraquat is a non-selective contact chemical and will kill most young annual grasses and broadleaf weeds. It will knock down yellow or purple watergrass but control is short-lived. "]
[null,null,"Adding diuron improves its effect, particularly  on grasses and the mixture is useful for weeds which are too big for other chemical treatments, i.e. grasses beyond the 2-4 leaf stage and after tillering,  and for broadleaf weeds taller than 10 cm."]
[null,"Precautions","Paraquat is very poisonous (Group 2) and produces very small droplets when sprayed. Do not inhale or spill concentrate on skin. "]
[null,null,"Only use clean water. Do not use muddy water."]
[null,null,"Avoid spray drift onto other crops, grazing rivers or dams. "]
[null,null,"Inconsistent and variable control of weeds is due to e.g."]
[null,null,"·      Stress conditions (drought, cold or heat), "]
[null,null,"·      Plants with foliage with pronounced waxy layers (e.g. Portulaca),"]
[null,null,"·      Inconsistent relationship between above soil and subsoil plant tissue (Conyza bonariensis after dry periods or growth during the winter). "]
[null,null,"·      Plants with natural or acquired resistance to paraquat based products (e.g. Commelina, Ipomoea, Conyza),"]
[null,null,"·      Poor coverage and penetration of exposed leaves, "]
[null,null,"·      Regrowth by plants with bulbs and tubers e.g. Cyperus spp, "]
[null,null,"·      Growth tips protected by leaf sheaths covering growth points,"]
[null,null,"·      Periods or growth during the winter, "]
[null,null,"·      Poor water quality."]
[]
[null,"PARAQUAT + DIURON"]
[null,"HRAC Group = D + C","Inhibits photosynthesis (conversion of light to chemical energy) and transfer of chemical energy to sugar"]
[null,"Weeds controlled","Annual grasses and broadleaf weeds"]
[null,"Variable control","Yellow and purple watergrass "]
[null,"Site of absorption","Foliage and roots. Early – late post-emergence"]
[null,"Climatic requirements","No rain during spraying. Active growing conditions. Best results are obtained in moist soil when rainfall moves the herbicide into the soil soon after application."]
[null,"Maximum cane size before applying as a directed spray","Paraquat causes severe scorching to cane foliage. When cane has more than three unfurled leaves per shoot at the time of spraying, growth will be set back by applications over the cane. Spray should be directed away from foliage in ratoon cane and should preferably be applied no later than the spike stage of growth in plant cane."]
[null,"Level of management required","High (health and safety)"]
[null,"Leaching","Adsorbed by soils with high clay and organic matter content."]
[null,"Label band colour of worst ingredient","Yellow-Red. Highly toxic and described as requiring extreme caution. These products can kill if swallowed – never repack from the container."]
[null,"Toxicity to rats","Very high (ORAL LD50 48-160 mg/kg). Toxic in contact with skin and if swallowed. Very toxic by inhalation."]
[null,"Toxicity to birds","High (ORAL LD50 280-1000 mg/kg)"]
[null,"Toxicity to bees","Can be toxic."]
[null,"Toxicity to fish","High toxicity to fish (LC50 1-20 mg/L). Very toxic to aquatic organisms, may cause long-term adverse effects in the aquatic environment."]
[null,"Spray rate of water","200-400 litres per ha. Use the higher rate where severe weed infestations are anticipated or where longer residual activity is required on heavier soils."]
[null,"Increase herbicide application rate according to","Depends on the formulation. Follow label recommendations."]
[null,"Comments ","A non-selective chemical that will kill most young annual grasses and broadleaf weeds. It can control Panicum maximum before 4 cm and before tillering."]
[null,null,"Apply when the weeds are in the early post-emergence stage just prior to or at spiking stage in plant cane. It can be used as a directed pre-canopy spray in both plant and ratoon cane or for spot spraying. Use a high water volume for spraying dense weed growth. Resistance against the following species has been reported: Bidens spp, Plantago spp, Lolium spp."]
[null,"Precautions ","Paraquat is very poisonous (Group 2) and produces very small droplets when sprayed. "]
[null,null,"Do not inhale spray mist! Do not spill concentrate on skin "]
[null,null,"These products can kill if swallowed – never repack from the container."]
[null,null,"Use clean water only."]
[]
[null,"PENDIMETHALIN"]
[null,"HRAC Group = K1","Inhibits cell division and development through other pathways"]
[null,"Weeds controlled","Seeding grasses and annual broadleaf weeds"]
[null,"Variable control","Yellow watergrass"]
[null,"Site of absorption","Roots"]
[null,"Climatic requirements","For good control of Rottboellia, it is critical to leach herbicide into soil with 20 to 50 mm sprinkler irrigation within 0-3 days of application. "]
[null,null,"In rainfed conditions soils must be moist with rainfall occurring within three days of spraying to ensure that the herbicides move into the soil profile and reach the root zone of germinating weeds."]
[null,"Maximum cane size before applying as a directed spray","Plant cane: Apply within two days of planting."]
[null,null,"Ratoon cane: Apply not later than seven days after cutting."]
[null,"Level of management required","Medium"]
[null,"Leaching","Adsorbed by clay and organic matter."]
[null,"Label band colour of worst ingredient","Yellow. Toxic and described as harmful"]
[null,"Toxicity to rats","Medium (ORAL LD50 1000-2000 mg/kg)"]
[null,"Toxicity to birds","Medium (LD50 900-2000 mg/kg)"]
[null,"Toxicity to bees","Medium-high toxicity (LD50 70-1000 ug/BEE)"]
[null,"Toxicity to fish","High (LC50 1-20 mg/L). "]
[null,null,"Toxic to fish and other aquatic organisms."]
[null,"Spray rate of water","150-250 litres per hectare"]
[null,"Increase herbicide application rate according to","Clay content"]
[null,"Comments ","Pre-emergence:"]
[null,null,"Very good pre-emergence control of difficult seeding grasses like Rottboellia and Panicum maximum. For good control of Rottboellia, it is critical to leach herbicide into soil with 20 to 50 mm sprinkler irrigation within 0-3 days of application. Mixtures with diuron increase the spectrum of weeds that can be controlled. "]
[null,null,"The formulation Parabat is registered in combination with with Extreme Plus and this improves control of Cyperus species"]
[null,"Precautions","Avoid inhalation."]
[null,null,"The mixture with diuron should be continually agitated."]
[null,null,"If the specified application timing is not adhered to, or if dry conditions are allowed to prevail, only partial weed control may be achieved."]
[]
[null,"SAFLUFENACIL + DIMETHENAMID-P"]
[null,"HRAC Group = E + K3","Inhibits development of pigments and also protein or fat synthesis and hence groth and development."]
[null,"Weeds controlled","Pre-emergent control of annual grasses, and annual broadleaf weeds and suppression of yellow watergrass"]
[null,"Variable control","Yellow watergrass"]
[null,"Site of absorption","Uptake occurs between germination of the seed and emergence of the seedling from the soil."]
[null,"Climatic requirements","Application must be followed by 10-15 mm of rain, or sprinkler irrigation, before the weeds emerge."]
[null,"Maximum cane size before applying as a directed spray","Do not apply after emergence of the crop as this will result in crop damage."]
[null,"Level of management required","Medium"]
[null,"Leaching"]
[null,"Label band colour of worst ingredient","Blue. Toxic and described as requiring caution."]
[null,"Toxicity to rats","Low (ORAL LD50 2000-8000 mg/kg)"]
[null,"Toxicity to birds"]
[null,"Toxicity to bees"]
[null,"Toxicity to fish","Very high (LC50 18 mg/L). Very toxic to aquatic organisms, may cause long-term adverse effects in the aquatic environment."]
[null,"Spray rate of water","Minimum of 200 litres per hectare"]
[null,"Increase herbicide application rate according to","Apply at recommended dosage of 1,5 litres per Hecate."]
[null,"Comments ","The product must be applied as an overall application at planting of the crop, or within three days thereof, and pre-emergence of the weeds. Weeds that have emerged at time of application will not be controlled. "]
[]
[null,"Precautions ","Avoid overlapping spray swaths."]
[null,null,"Weed control may be reduced if:"]
[null,null,"·      Heavy rains erode or wash away the soil surface containing product."]
[null,null,"·      Heavy rainfall, or irrigation, shortly after application may reduce residual activity."]
[null,null,"·      There is surface trash. Application to loose trash that may be displaced by wind can result in reduced efficacy."]
[null,null,"Do not apply the product in the following situations as crop damage may occur:"]
[null,null,"·      On poorly drained soils. "]
[null,null,"·      Soils with a compaction layer. "]
[null,null,"·      Soils with nutrient deficiencies. "]
[null,null,"·      Where soil capping occurs, prior to the emergence of the seedlings, or if seedling germination is retarded."]
[null,null,"Avoid spray drift onto desirable vegetation."]
[null,null,"Prevent contamination of grazing, rivers, dams and areas not under treatment."]
[]
[null,"SULCOTRIONE + ATRAZINE"]
[null,"HRAC Group = F2 + C1","Inhibits photosynthesis (conversion of light to chemical energy) and also development of pigments"]
[null,"Weeds controlled","Annual grasses and broadleaf weeds"]
[null,"Variable control","Suppression only of yellow watergrass"]
[null,"Site of absorption","Mainly foliage, some root uptake"]
[null,"Climatic requirements","Moist soil with actively growing weeds. Continuous wet, rainy conditions after a post-emergence application may reduce efficacy of the product."]
[null,"Maximum cane size before applying as a directed spray","Cane leaves can be up to 1m high"]
[null,"Level of management required","High (high leaching potential)"]
[null,"Leaching","High potential. Adsorbed by clay and organic matter"]
[null,"Label band colour of worst ingredient","Yellow. Toxic and described as harmful"]
[null,"Toxicity to rats","Low (ORAL LD50 2000-8000 mg/kg)"]
[null,"Toxicity to birds","Low (LD50 2000-20000 mg/kg)"]
[null,"Toxicity to bees","Low or no toxicity (LD50 1000 ug/BEE - NON TOXIC)"]
[null,"Toxicity to fish","High (LC50 1-20 mg/L). Toxic to fish and aquatic organisms."]
[null,"Spray rate of water","200-300 litres per hectare"]
[null,"Increase herbicide application rate according to","Dosage rate is not influenced by the clay content of the soil."]
[null,"Comments ","It will control some annual grasses and many broadleaf weeds, e.g. pigweed, commelina, and at higher rates, e.g. morning glory. "]
[null,null,"The product can be applied pre- or post-emergence of either crop or weeds. Do not add a surfactant for post-emergence application. When applying post-emergence the weeds must be at the correct growth stage (see label)."]
[null,null,"Refer to label before planting cover crops."]
[null,"Precautions","Avoid leaching, especially in sandy soils."]
[null,null,"Do not add additional Atrazine"]
[null,null,"Use only water of a high quality and low soluble salt content. "]
[null,null,"Use a recommended buffer as required."]
[null,null,"Ensure thorough agitation is maintained at all times."]
[null,null,"Do not mix, load or apply within at least 15 metre from bore holes, streams or rivers. Do not apply within at least 60 metre from dams. Do not spray near desirable trees or plants or where their roots may extend. Avoid drift onto other crops, grazing, rivers, dams or nearby water sources."]
[null,null,"Efficacy is reduced with:"]
[null,null,"·       Dry soil conditions after pre-emergence application"]
[null,null,"·       Continual overcast and rainy conditions after a post-emergence application"]
[null,null,"·       In areas with a high soil organic matter content the period of weed control may be shorter "]
[null,null,"For post-emergence application, avoid:"]
[null,null,"·       Stress conditions of weeds caused by drought, cold weather conditions, disease, insect damage, mineral element deficiencies and waterlogging."]
[null,null,"·       Application to weeds beyond the optimum growth stage."]
[null,null,"·       Application to weeds that are not actively growing."]
[]
[null,"SULFENTRAZONE"]
[null,"HRAC Group = E","Inhibits development of pigments"]
[null,"Weeds controlled","Range of broadleaf weeds, grasses and Cyperus esculentus"]
[null,"Variable control"]
[null,"Site of absorption","Absorbed by roots and shoots of germinating seeds and seedlings"]
[null,"Climatic requirements","Apply onto moist soil, rain or irrigation is required within one week after application to obtain best results."]
[null,"Maximum cane size before applying as a directed spray","Sulfentrazone can cause a temporary red scorch to leaves that have been sprayed."]
[null,"Level of management required","Medium"]
[null,"Leaching","Sulfentrazone is not strongly adsorbed by clay or organic matter. This chemical is moderately mobile in the soil."]
[null,"Label band colour of worst ingredient","Blue. Toxic and described as requiring caution"]
[null,"Toxicity to rats","Low (ORAL LD50 2000-8000 mg/kg)"]
[null,"Toxicity to birds","Low (LD50 2000-20000 mg/kg)"]
[null,"Toxicity to bees"]
[null,"Toxicity to fish","Medium (LC50 50-300 mg/L). Toxic to fish and other aquatic organisms."]
[null,"Spray rate of water","200-400 litres per hectare"]
[null,"Increase herbicide application rate according to","Only one application rate is given for soils above 20% clay content."]
[null,"Comments ","Lands infested with Cyperus rotundus are likely to have a dense and extensive system of rhizomes and tubers which produce hardy plants. To achieve maximum benefit plan three sprays, the first at planting and then directly after the cane is cut in the following two cycles."]
[]
[null,"Precautions ","Plant cane: Prepare soil using good agricultural practices."]
[null,null,"Ratoon cane: remove debris from soil surface before spraying."]
[null,null,"Apply pre-emergence to soils with a clay content >15 %."]
[null,null,"High rainfall (> 450 mm) will cause movement of the product in coarse soils which can result in poor weed and residual control."]
[null,null,"As soil pH increases, sulfentrazone availability increases. Irrigation with highly alkaline water (pH of 7.5 and above) following soil application can also significantly increase the availability of sulfentrazone in soil solution. The total amount of sulfentrazone available in solution, in any given soil, is determined by the interaction of soil type (clay content), OM content and pH. "]
[null,null,"Avoid spray drift onto other crops, grazing, rivers and dams."]
[null,null,"Prevent drift by adhering to spray procedures."]
[]
[null,"TEBUTHIURON"]
[null,"HRAC Group = C2","Inhibits photosynthesis (conversion of light to chemical energy)"]
[null,"Weeds controlled","Grasses and broadleaf weeds"]
[null,"Variable control"]
[null,"Site of absorption","Mainly roots, but also foliage"]
[null,"Climatic requirements","Rain or a moderate irrigation is required to leach tebuthiuron into the top layer of soil where seeds germinate. Apply when conditions favour active growth."]
[null,"Maximum cane size before applying as a directed spray","0-5 unfurled leaves"]
[null,"Level of management required","Medium"]
[null,"Leaching","Little leaching can be expected, as this product is bound to clay and organic matter."]
[null,"Label band colour of worst ingredient","Yellow. Toxic and described as harmful"]
[null,"Toxicity to rats","High (ORAL LD50 280-1000 mg/kg)"]
[null,"Toxicity to birds","Medium (LD50 900-2000 mg/kg)"]
[null,"Toxicity to bees","Low or no toxicity (LD50 1000 ug/BEE - NON TOXIC)"]
[null,"Toxicity to fish","Medium (LC50 50-300 mg/L)"]
[null,"Spray rate of water","200-300 litres per hectare"]
[null,"Increase herbicide application rate according to","Clay content"]
[null,"Comments ","Effective on grasses, broadleaf and woody weeds."]
[null,null,"Can be applied as a pre- or an early post-emergence herbicide to both plant and ratoon sugarcane. "]
[null,null,"Pre-emergence: Combine tebuthiuron with ametryn or diuron to a soil surface that is free of cane trash, clods and established weeds. Do not apply to soil that is excessively dry or wet. "]
[null,null,"Post-emergence: Combine tebuthiuron with ametryn or diuron plus a recommended surfactant. Ensure that broadleaf weeds and grasses have not developed beyond the four leaf stage at the time of treatment."]
[null,"Precautions ","Do not apply near trees or other desirable plants as the product may leach into the root zone. "]
[null,null,"Do not apply to cane trash or to soils of over 10 % organic material content, nor to soils of under 8 % clay content. "]
[null,null,"Do not plant any crop other than sugarcane within two years of application. "]
[null,null,"The spray mixture should be agitated continuously before and during application."]

{"sheet":"WEED STAGE TABLES","index":4,"n_rows":117,"n_cols":11,"rows_kept":117,"cut":false,"hidden":true,"merged":[[0,1,0,10],[1,1,1,10],[79,1,79,10],[101,1,101,10],[112,1,112,10],[2,1,2,10],[42,1,42,10]]}
[null,"TREATMENT SELECTION TABLES"]
[null,"Note: BL = broadleaf weeds | ROT = rottboellia | SOR - sorghum | YWG = yellow watergrass | PWG = purple watergrass"]
[null,"PRE-EMERGENCE"]
[null,"BL","GRASS","UBABE","ROT","SOR","YWG","PWG","CROP RESTRICTION","TREATMENT","WEEKS CONTROL"]
[null,"*",null,null,null,null,null,null,null,"MCPA ",5]
[null,null,"*",null,null,"*","*","*","PLANT CROP ONLY","EPTC ",8]
[null,"*","*","*",null,null,"*",null,null,"Alachlor  +  MCPA ",8]
[null,"*","*","*",null,null,"*",null,null,"Alachlor  +  Atrazine ",8]
[null,"*","*","*",null,null,"*",null,null,"Alachlor  +  Diuron ",8]
[null,"*","*","*",null,null,"*",null,null,"Alachlor  +  Ametryn ",8]
[null,"*","*","*",null,null,"*","*",null,"Chlorimuron ethyl  +  Metribuzin",12]
[null,"*","*","*","*",null,"*","*",null,"Pendimethalin  +  Metribuzin  +  Chlorimuron-ethyl",12]
[null,"*","*","*","*",null,"*",null,null,"Pendimethalin  +  Amicarbazone ",12]
[null,"*","*","*","*",null,null,null,null,"Diuron  +  Pendimethalin ",12]
[null,"*","*","*","*",null,null,null,null,"Pendimethalin ",12]
[null,"*","*","*",null,null,"*",null,null,"Metazachlor  +  Diuron ",9]
[null,"*","*","*",null,null,"*",null,null,"Metazachlor  +  Atrazine ",9]
[null,"*","*",null,null,null,null,null,null,"Mesotrione  +  S-metolachlor  +  Terbuthylazine",10]
[null,"*","*","*",null,null,"*",null,null,"Acetochlor  +  Atrazine ",9]
[null,"*","*","*",null,null,"*",null,null,"Acetochlor  +  Diuron ",9]
[null,"*","*","*",null,null,"*",null,null,"Acetochlor  +  Ametryn ",9]
[null,"*","*","*",null,null,"*",null,null,"Saflufenacil  +  Dimethenamid-P ",10]
[null,"*","*","*",null,null,"*",null,"RATOON CROP ONLY","Amicarbazone  +  Acetochlor ",14]
[null,"*","*","*",null,null,"*",null,null,"Metribuzin  +  Diuron ",12]
[null,"*","*","*",null,"*","*",null,null,"S- metolachlor  +  Ametryn ",9]
[null,"*","*","*",null,"*","*",null,"RATOON CROP ONLY","S- metolachlor  +  Hexazinone ",12]
[null,"*","*","*",null,null,"*",null,null,"Metolachlor  +  Ametryn ",9]
[null,"*","*","*",null,null,"*",null,null,"Tebuthiuron  +  Acetochlor ",12]
[null,"*","*","*",null,null,null,null,null,"Tebuthiuron  +  Diuron ",12]
[null,"*","*","*",null,null,null,null,null,"Tebuthiuron  +  Ametryn ",12]
[null,"*","*","*",null,null,"*",null,null,"Sulfentrazone ",12]
[null,"*","*","*",null,null,null,null,"RATOON CROP ONLY","Hexazinone ",12]
[null,"*","*","*",null,null,null,null,"RATOON CROP ONLY","Hexazinone  +  Diuron ",12]
[null,"*","*","*",null,null,null,null,"RATOON CROP ONLY","Isoxaflutole  +  Diuron ",14]
[null,"*","*","*",null,null,null,null,"RATOON CROP ONLY","Isoxaflutole  +  Hexazinone ",14]
[null,"*","*","*",null,null,null,null,"RATOON CROP ONLY","Isoxaflutole  +  Ametryn ",14]
[null,"*","*","*",null,null,"*",null,"RATOON CROP ONLY","Amicarbazone  +  Hexazinone ",14]
[null,"*","*",null,null,null,"*",null,"RATOON CROP ONLY","Amicarbazone  +  Isoxaflutole ",14]
[null,"*","*","*","*","*","*",null,"RATOON CROP ONLY","Amicarbazone  +  Hexazinone  +  Clomazone ",16]
[null,"*","*","*","*",null,null,null,"RATOON CROP ONLY","Isoxaflutole  +  Indaziflam ","no info"]
[]
[]
[null,"EARLY POST-EMERGENCE"]
[null,"BL","GRASS","UBABE","ROT","SOR","YWG","PWG","CROP RESTRICTION","TREATMENT","WEEKS CONTROL"]
[null,"*","*","*",null,null,"*",null,null,"Alachlor  +  Atrazine  +  Paraquat ",8]
[null,"*","*","*",null,null,"*",null,null,"Alachlor  +  Ametryn  +  Paraquat ",8]
[null,"*","*","*",null,null,"*",null,null,"Alachlor  +  Diuron  +  Paraquat ",8]
[null,"*","*","*",null,null,"*",null,null,"Alachlor  +  Ametryn ",8]
[null,"*","*","*",null,null,"*",null,null,"Chlorimuron ethyl  +  Metribuzin",12]
[null,"*","*","*",null,null,"*",null,null,"Acetochlor  +  Ametryn ",9]
[null,"*","*","*",null,null,"*",null,null,"Acetochlor  +  Ametryn  +  Paraquat ",9]
[null,"*","*","*",null,null,"*",null,"RATOON CROP ONLY","Amicarbazone  +  Acetochlor  +  Paraquat ",14]
[null,"*","*","*",null,null,"*",null,null,"S-metolachlor  +  Diuron  +  Paraquat ",8]
[null,"*","*","*",null,null,"*",null,null,"Metolachlor  +  Diuron  +  Paraquat ",8]
[null,"*","*","*",null,null,"*",null,null,"S-metolachlor  +  Metribuzin  +  Paraquat ",12]
[null,"*","*","*",null,null,"*",null,null,"Metolachlor  +  Metribuzin  +  Paraquat ",12]
[null,"*","*","*",null,null,"*",null,null,"S-metolachlor  +  Ametryn  +  MCPA ",9]
[null,"*","*","*",null,null,"*",null,null,"Metolachlor  +  Ametryn  +  MCPA ",9]
[null,"*","*","*",null,null,"*",null,null,"S-metolachlor  +  Ametryn  +  Paraquat ",9]
[null,"*","*","*",null,null,"*",null,null,"Metolachlor  +  Ametryn  +  Paraquat ",9]
[null,"*","*","*",null,null,"*",null,null,"S-metolachlor  +  Ametryn ",9]
[null,"*","*","*",null,null,"*",null,null,"Metolachlor  +  Ametryn ",9]
[null,"*","*",null,null,null,"*",null,null,"Sulcotrione  +  Atrazine ",8]
[null,"*","*","*",null,null,"*",null,"PLANT CROP ONLY","Metazachlor  +  Diuron  +  Paraquat ",9]
[null,"*","*","*",null,null,"*",null,null,"Metazachlor  +  Ametryn  +  Paraquat ",9]
[null,"*","*","*",null,null,"*",null,null,"Mesotrione  +  S-metolachlor  +  Terbuthylazine  +  Paraquat",10]
[null,"*","*",null,null,null,"*",null,null,"Mesotrione  +  S-metolachlor  +  Diuron","4-8"]
[null,"*","*","*",null,null,"*",null,null,"Metribuzin  +  Diuron  +  Paraquat ",12]
[null,"*","*","*",null,null,"*",null,null,"Metribuzin  +  Ametryn  +  Paraquat ",12]
[null,"*","*",null,null,null,"*",null,null,"Tebuthiuron  +  Acetochlor ",12]
[null,"*","*","*",null,null,null,null,null,"Tebuthiuron  +  Diuron ",12]
[null,"*","*","*",null,null,null,null,null,"Tebuthiuron  +  Ametryn ",12]
[null,"*","*","*",null,null,"*",null,"RATOON CROP ONLY","Hexazinone  +  Diuron ",12]
[null,"*","*","*",null,null,"*",null,"RATOON CROP ONLY","Hexazinone ",12]
[null,"*","*","*",null,null,"*",null,"RATOON CROP ONLY","Hexazinone  +  Ametryn ",12]
[null,"*","*","*",null,null,null,null,"RATOON CROP ONLY","Isoxaflutole  +  Paraquat ",14]
[null,"*","*","*",null,null,"*",null,"RATOON CROP ONLY","Amicarbazone  +  Hexazinone  +  Paraquat ",14]
[]
[]
[null,"POST-EMERGENCE"]
[null,"BL","GRASS","UBABE","ROT","SOR","YWG","PWG","CROP RESTRICTION","TREATMENT","WEEKS CONTROL"]
[null,"*","*","*",null,null,"*",null,null,"Ametryn  +  Metribuzin ",12]
[null,"*","*","*",null,null,null,null,null,"Glufosinate ammonium  +  Diuron  +  Metribuzin ",12]
[null,"*","*","*",null,null,null,null,"RATOON CROP ONLY","Glufosinate ammonium  +  Diuron  +  Hexazinone ",12]
[null,"*",null,null,null,null,"*",null,"RATOON CROP ONLY","Amicarbazone  +  MCPA ",12]
[null,"*","*","*",null,null,"*",null,"RATOON CROP ONLY","Amicarbazone  +  Ametryn ",12]
[null,"*","*",null,null,null,"*",null,"RATOON CROP ONLY","Amicarbazone  +  MCPA  +  Ametryn ",12]
[null,"*","*","*",null,null,null,null,null,"Isoxadifen-ethyl  +  Tembotrione  +  Atrazine ",6]
[null,"*",null,null,null,null,"*",null,null,"Diuron  +  MCPA ",6]
[null,"*",null,null,null,null,"*","*",null,"Mesotrione  +  Halosulfuron ",6]
[null,null,null,null,null,null,"*","*",null,"Halosulfuron ",6]
[null,"*","*",null,null,null,null,null,null,"Ametryn ",6]
[null,"*","*",null,null,null,"*",null,null,"Ametryn  +  MCPA ",6]
[null,"*","*",null,null,null,null,null,null,"Ametryn  +  Paraquat ",6]
[null,"*",null,null,null,null,null,null,null,"MCPA ",5]
[null,null,"*","*",null,null,"*","*",null,"MSMA ",6]
[null,"*","*","*",null,null,"*","*",null,"Diuron  +  Paraquat ",5]
[null,"*","*",null,null,null,"*","*",null,"Paraquat ",4]
[null,"*","*","*",null,null,"*","*",null,"Glufosinate ammonium ","no info"]
[]
[]
[null,"LATE POST-EMERGENCE"]
[null,"BL","GRASS","UBABE","ROT","SOR","YWG","PWG","CROP RESTRICTION","TREATMENT","WEEKS CONTROL"]
[null,"*","*",null,null,null,"*",null,null,"Diuron  +  Paraquat ",5]
[null,"*","*","*","*","*","*","*",null,"Diuron  +  MSMA ",5]
[null,null,null,null,null,null,"*","*",null,"Halosulfuron ",6]
[null,"*","*",null,null,null,"*","*",null,"Paraquat ",4]
[null,null,"*","*",null,null,"*","*",null,"MSMA ",4]
[null,"*","*","*","*","*","*","*",null,"Ametryn  +  MSMA ",5]
[null,"*","*","*",null,null,"*","*",null,"Glufosinate ammonium ","no info"]
[]
[]
[null,"CANE STOOL ERADICATION & FALLOW FIELD CLEAN-UP"]
[null,"BL","GRASS","UBABE","ROT","SOR","YWG","PWG","CROP RESTRICTION","TREATMENT","WEEKS CONTROL"]
[null,"*","*","*",null,"*","*","*",null,"Glyphosate ","no info"]
[null,null,"*",null,null,null,null,null,null,"Fluazifop-butyl ","no info"]
[null,"*","*","*",null,"*","*",null,null,"Arsenal Gen 2 ","no info"]

{"sheet":"TRADE NAMES PRINT","index":5,"n_rows":211,"n_cols":8,"rows_kept":211,"cut":false,"hidden":true,"merged":[[1,1,1,7]]}
[]
[null,"LIST OF ACTIVE INGREDIENTS AND CORRESPONDING PRODUCT TRADE NAMES"]
[null,"ACTIVE INGREDIENT","TRADE NAME","AI STRENGTH","UNIT","FORMULATION","LABEL BAND","HRAC GROUP"]
[null,"ACETOCHLOR","Acetochlor 700 EC",700,"g/litre","(EC)","Blue","K3"]
[null,"ACETOCHLOR","Wenner",700,"g/litre","(EC)","Blue","K3"]
[null,"ACETOCHLOR","Guardian S",840,"g/litre","(EC)","Blue","K3"]
[null,"ACETOCHLOR","Leap 840 EC",840,"g/litre","(EC)","Blue","K3"]
[null,"ACETOCHLOR","Premium 840 EC",840,"g/litre","(EC)","Blue","K3"]
[null,"ACETOCHLOR","Acetak EC",900,"g/litre","(EC)","Blue","K3"]
[null,"ACETOCHLOR","Acetochlor 900 EC",900,"g/litre","(EC)","Blue","K3"]
[null,"ACETOCHLOR","Arysta Acetochlor",900,"g/litre","(EC)","Blue","K3"]
[null,"ACETOCHLOR","GAP Acetochlor 900",900,"g/litre","(EC)","Blue","K3"]
[null,"ACETOCHLOR","Premium 900 EC",900,"g/litre","(EC)","Blue","K3"]
[null,"ACETOCHLOR","Relay Super",900,"g/litre","(EC)","Blue","K3"]
[null,"ACETOCHLOR","Kestrel",960,"g/litre","(EC)","Blue","K3"]
[null,"ALACHLOR","Alachlor",384,"g/litre","(EC)","Yellow","K3"]
[null,"ALACHLOR","Lasso EC",384,"g/litre","(EC)","Yellow","K3"]
[null,"ALACHLOR","Arysta Alachlor",384,"g/litre","(EC)","Yellow","K3"]
[null,"ALACHLOR","GAP Alachlor",384,"g/litre","(EC)","Yellow","K3"]
[null,"ALACHLOR","Alachlor EC",384,"g/litre","(EC)","Yellow","K3"]
[null,"ALACHLOR","Villa-klor 480 CS",480,"g/litre","(CS)","Yellow","K3"]
[null,"ACETOCHLOR + AMETRYN","Squash EC","350+200","g/litre","(EC)","Yellow","K3 + C1"]
[null,"ACETOCHLOR + AMETRYN","Acetamet 700 SC","450+250","g/litre","(SC)","Yellow","K3 + C1"]
[null,"ACETOCHLOR + AMETRYN","Assault 700 SC","450+250","g/litre","(SC)","Yellow","K3 + C1"]
[null,"AMETRYN","Ametryn 500 SC",500,"g/litre","(SC)","Yellow","C1"]
[null,"AMETRYN","GAP Ametryn",500,"g/litre","(SC)","Yellow","C1"]
[null,"AMETRYN","Anaconda",500,"g/litre","(SC)","Yellow","C1"]
[null,"AMETRYN","Arysta Ametryn",500,"g/litre","(SC)","Yellow","C1"]
[null,"AMETRYN","Ametrex 500 SC",500,"g/litre","(SC)","Yellow","C1"]
[null,"AMICARBAZONE","Dinamic 700 WG",700,"g/kg","(WDG)","Blue","C1"]
[null,"AMICARBAZONE","Farmazone 700 WG",700,"g/kg","(WDG)","Blue","C1"]
[null,"AMICARBAZONE","Direction 700 WDG",700,"g/kg","(WDG)","Blue","C1"]
[null,"AMICARBAZONE","Discipline 700 WDG",700,"g/kg","(WDG)","Blue","C1"]
[null,"ATRAZINE","Atrazine 900 WG",900,"g/kg","(WDG)","Yellow","C1"]
[null,"ATRAZINE","Arysta Atrazine 900",900,"g/kg","(WDG)","Yellow","C1"]
[null,"ATRAZINE","Agrizine 500 SC",500,"g/litre","(SC)","Yellow","C1"]
[null,"ATRAZINE","GAP Atrazine",500,"g/litre","(SC)","Yellow","C1"]
[null,"ATRAZINE","Atrazine SC",500,"g/litre","(SC)","Yellow","C1"]
[null,"ATRAZINE","Atraflo 500 SC",500,"g/litre","(SC)","Yellow","C1"]
[null,"ATRAZINE","Arysta Atrazine 500",500,"g/litre","(SC)","Yellow","C1"]
[]
[]
[null,"ACTIVE INGREDIENT","TRADE NAME","AI STRENGTH","UNIT","FORMULATION","LABEL BAND","HRAC GROUP"]
[null,"CHLORIMURON-ETHYL","Elegance Super 750 WDG",750,"g/kg","(WDG)","Blue","B"]
[null,"CHLORIMURON-ETHYL","Style 750 WDG",750,"g/kg","(WDG)","Blue","B"]
[null,"DIURON","Aventis Diuron Flo",800,"g/litre","(SC)","Green","C2"]
[null,"DIURON","Diuron 800 SC",800,"g/litre","(SC)","Green","C2"]
[null,"DIURON","Arysta Diuron",800,"g/litre","(SC)","Green","C2"]
[null,"DIURON","GAP Diuron",800,"g/litre","(SC)","Green","C2"]
[null,"DIURON","Diablo",800,"g/litre","(SC)","Green","C2"]
[null,"DIURON","Cention",800,"g/litre","(SC)","Green","C2"]
[null,"DIURON","Diurex 800 SC",800,"g/litre","(SC)","Green","C2"]
[null,"DIURON","Farmag Diuron 800",800,"g/kg","(WDG)","Green","C2"]
[null,"DIURON","Diron 800 WG",800,"g/kg","(WDG)","Green","C2"]
[null,"DIURON","Develop 800 WDG",800,"g/kg","(WDG)","Green","C2"]
[null,"DIURON","Extend 800 WDG",800,"g/kg","(WDG)","Green","C2"]
[null,"DIURON","Diuron 80 WG",800,"g/kg","(WDG)","Green","C2"]
[null,"DIURON","Karmex",800,"g/kg","(WDG)","Green","C2"]
[null,"EPTC","Eptam Super",720,"g/litre","(EC)","Yellow","N"]
[null,"EPTC","EPTC Plus",720,"g/litre","(EC)","Yellow","N"]
[null,"EPTC","Eptam Plus",720,"g/litre","(EC)","Yellow","N"]
[null,"EPTC","EPTC Super 720 EC",720,"g/litre","(EC)","Yellow","N"]
[null,"EPTC","Esculentus 720 EC",720,"g/litre","(EC)","Yellow","N"]
[null,"EPTC","EPTC S EC",720,"g/litre","(EC)","Yellow","N"]
[null,"FLUAZIFOP-BUTYL","Volley 125",125,"g/litre","(EC)","Yellow","A"]
[null,"FLUAZIFOP-BUTYL","Fluzie",125,"g/litre","(EC)","Yellow","A"]
[null,"FLUAZIFOP-BUTYL","Orca 125 EC",125,"g/litre","(EC)","Yellow","A"]
[null,"FLUAZIFOP-BUTYL","Fusilade Forte",150,"g/litre","(EC)","Yellow","A"]
[]
[]
[null,"ACTIVE INGREDIENT","TRADE NAME","AI STRENGTH","UNIT","FORMULATION","LABEL BAND","HRAC GROUP"]
[null,"GLUFOSINATE AMMONIUM","Basta",200,"g/litre","(SL)","Yellow","H"]
[null,"GLUFOSINATE AMMONIUM","Bound",200,"g/litre","(SL)","Yellow","H"]
[null,"GLUFOSINATE AMMONIUM","Brass",200,"g/litre","(SL)","Yellow","H"]
[null,"GLUFOSINATE AMMONIUM","Nirvana",200,"g/litre","(SL)","Yellow","H"]
[null,"GLYPHOSATE","Slash 710 SG",710,"g/kg","(WSG)","Green-Blue","G"]
[null,"GLYPHOSATE","Glygran 710 SG",710,"g/kg","(WSG)","Green-Blue","G"]
[null,"GLYPHOSATE","Kalach 700",700,"g/kg","(WSG)","Green-Blue","G"]
[null,"GLYPHOSATE","Piranha Dry",686,"g/kg","(WSG)","Green-Blue","G"]
[null,"GLYPHOSATE","Erase Super 540 SL",540,"g/kg","(SL)","Green-Blue","G"]
[null,"GLYPHOSATE","Piranha 510 SL",510,"g/kg","(SL)","Green-Blue","G"]
[null,"GLYPHOSATE","Kalach 510 SL",510,"g/kg","(SL)","Green-Blue","G"]
[null,"GLYPHOSATE","Clearout 500",500,"g/kg","(WSG)","Green-Blue","G"]
[null,"GLYPHOSATE","Erase 500",500,"g/kg","(WSG)","Green-Blue","G"]
[null,"GLYPHOSATE","Touchdown Forte Hitech",500,"g/litre","(SC)","Green-Blue","G"]
[null,"GLYPHOSATE","Mamba DMA",480,"g/litre","(SL)","Green-Blue","G"]
[null,"GLYPHOSATE","Mamba Max",480,"g/litre","(SL)","Green-Blue","G"]
[null,"GLYPHOSATE","Slash Turbo",450,"g/litre","(SL)","Green-Blue","G"]
[null,"GLYPHOSATE","Roundup Turbo",450,"g/litre","(SL)","Green-Blue","G"]
[null,"GLYPHOSATE","Muscle-up 360 SL",360,"g/litre","(SL)","Green-Blue","G"]
[null,"GLYPHOSATE","Bounty SL",360,"g/litre","(SL)","Green-Blue","G"]
[null,"GLYPHOSATE","Slash 360",360,"g/litre","(SL)","Green-Blue","G"]
[null,"GLYPHOSATE","Scat 360",360,"g/litre","(SL)","Green-Blue","G"]
[null,"GLYPHOSATE","Panga 360",360,"g/litre","(SL)","Green-Blue","G"]
[null,"GLYPHOSATE","Piranha 360",360,"g/litre","(SL)","Green-Blue","G"]
[null,"GLYPHOSATE","Annihilate",360,"g/litre","(SL)","Green-Blue","G"]
[null,"GLYPHOSATE","Persuador",360,"g/litre","(SL)","Green-Blue","G"]
[null,"GLYPHOSATE","Erase 360",360,"g/litre","(SL)","Green-Blue","G"]
[null,"GLYPHOSATE","Clearout 360",360,"g/litre","(SL)","Green-Blue","G"]
[null,"GLYPHOSATE","Clearout 180",180,"g/litre","(SL)","Green-Blue","G"]
[null,"GLYPHOSATE","Mamba",360,"g/litre","(SL)","Green-Blue","G"]
[null,"GLYPHOSATE","Roundup 360",360,"g/litre","(SL)","Green-Blue","G"]
[null,"GLYPHOSATE","Senator Xtra",360,"g/litre","(SL)","Green-Blue","G"]
[null,"GLYPHOSATE","Springbok ",360,"g/litre","(SL)","Green-Blue","G"]
[]
[]
[null,"ACTIVE INGREDIENT","TRADE NAME","AI STRENGTH","UNIT","FORMULATION","LABEL BAND","HRAC GROUP"]
[null,"HALOSULFURON","Servian",750,"g/kg","(WDG)","Green","B"]
[null,"HALOSULFURON","Cyprex",750,"g/kg","(WDG)","Green","B"]
[null,"HALOSULFURON","Brigadier 750 WG",750,"g/kg","(WDG)","Green","B"]
[null,"HALOSULFURON","Crown",750,"g/kg","(WDG)","Green","B"]
[null,"HALOSULFURON","Halo",750,"g/kg","(WDG)","Green","B"]
[null,"HEXAZINONE","Hexazinone 75 DF",750,"g/kg","(WDG)","Yellow","C1"]
[null,"HEXAZINONE","Unizone 750 WDG",750,"g/kg","(WDG)","Yellow","C1"]
[null,"HEXAZINONE","V-Zone 750 DF",750,"g/kg","(WDG)","Yellow","C1"]
[null,"HEXAZINONE","Villex 750 WDG",750,"g/kg","(WDG)","Yellow","C1"]
[null,"HEXAZINONE","Zinon WG",750,"g/kg","(WSG)","Yellow","C1"]
[null,"HEXAZINONE","Hexazinone 480 SL",480,"g/litre","(SL)","Yellow","C1"]
[null,"HEXAZINONE","Hexsan 240",240,"g/litre","(SL)","Yellow","C1"]
[null,"HEXAZINONE","HexaziMax",240,"g/litre","(SL)","Yellow","C1"]
[null,"HEXAZINONE","Ransom 240 SL",240,"g/litre","(SL)","Yellow","C1"]
[null,"HEXAZINONE","UAP Hexazinone",240,"g/litre","(SL)","Yellow","C1"]
[null,"HEXAZINONE","Arysta Hexazinone",240,"g/litre","(SL)","Yellow","C1"]
[null,"HEXAZINONE","FarmAg Hexazinone 750 WG",750,"g/kg","(WDG)","Yellow","C1"]
[null,"HEXAZINONE","Velpar DF",750,"g/kg","(WSG)","Yellow","C1"]
[null,"HEXAZINONE + CLOMAZONE","Dropzone 500 WP","400+100","g/kg","(WP)","Blue","C1 + F3"]
[null,"HEXAZINONE + DIURON","Bobcat Combi 600 WG","132+468","g/kg","(WDG)","Yellow","C1 + C2"]
[null,"HEXAZINONE + DIURON","Velpar K2.4","250+533","g/kg","(WDG)","Yellow","C1 + C2"]
[null,"HEXAZINONE + DIURON","Velpar K3.0","250+533","g/kg","(WDG)","Yellow","C1 + C2"]
[null,"HEXAZINONE + DIURON","Velpar K2.0","375+400","g/kg","(WDG)","Yellow","C1 + C2"]
[null,"IMAZAPYR","Arsenal GEN 2",240,"g/litre","(EC)","Blue","B"]
[null,"ISOXADIFEN-ETHYL + TEMBOTRIONE","Laudis",630,"g/litre","(SC)","Yellow","F2"]
[null,"ISOXAFLUTOLE","Merlin",750,"g/kg","(WDG)","Green","F2"]
[null,"ISOXAFLUTOLE","Guillotine 750 WG",750,"g/kg","(WDG)","Green","F2"]
[null,"ISOXAFLUTOLE","Silencer",750,"g/kg","(WDG)","Green","F2"]
[null,"ISOXAFLUTOLE","Manter",750,"g/kg","(WDG)","Green","F2"]
[null,"ISOXAFLUTOLE","Palmero 750 WG",750,"g/kg","(WDG)","Green","F2"]
[null,"ISOXAFLUTOLE + INDAZIFLAM","Alion Total","450+150","g/litre","(SC)","?","L29 + F2"]
[]
[]
[null,"ACTIVE INGREDIENT","TRADE NAME","AI STRENGTH","UNIT","FORMULATION","LABEL BAND","HRAC GROUP"]
[null,"MCPA","Tornado 400 SL",400,"g/litre","(SL)","Yellow","O"]
[null,"MCPA","Rescue 400 SL",400,"g/litre","(SL)","Yellow","O"]
[null,"MCPA","MCPA 400 SL",400,"g/litre","(SL)","Yellow","O"]
[null,"MCPA","Universal MCPA",400,"g/litre","(SL)","Yellow","O"]
[null,"MCPA","GAP MCPA",400,"g/litre","(SL)","Yellow","O"]
[null,"MESOTRIONE","Astron 480 SC",480,"g/litre","(SC)","Yellow","C1"]
[null,"MESOTRIONE","Amazing",480,"g/litre","(SC)","Yellow","C1"]
[null,"MESOTRIONE","Galago S",480,"g/litre","(SC)","Yellow","C1"]
[null,"MESOTRIONE + S-METOLACHLOR + TERBUTHYLAZINE","Lumax","37.5+375+125","g/litre","(SE)","Yellow","C1+F2+K3"]
[null,"MESOTRIONE + S-METOLACHLOR + TERBUTHYLAZINE","Locate 538 SC","37.5+375+125","g/litre","(SE)","Yellow","C1+F2+K3"]
[null,"MESOTRIONE + S-METOLACHLOR + TERBUTHYLAZINE","Local 538 SC","37.5+375+125","g/litre","(SE)","Yellow","C1+F2+K3"]
[null,"METAZACHLOR","Claw 500 SC",500,"g/litre","(SC)","Blue","K3"]
[null,"METAZACHLOR","Sultan 50 SC",500,"g/litre","(SC)","Blue","K3"]
[null,"METOLACHLOR","Metolachlor 960 EC",960,"g/litre","(EC)","Yellow","K3"]
[null,"METOLACHLOR","Tolla 960",960,"g/litre","(EC)","Yellow","K3"]
[null,"METOLACHLOR","Platinum",960,"g/litre","(EC)","Yellow","K3"]
[null,"METOLACHLOR","Buccaneer 960",960,"g/litre","(EC)","Yellow","K3"]
[null,"METOLACHLOR","Unimoc EC",960,"g/litre","(EC)","Yellow","K3"]
[null,"S-METOLACHLOR","Falcon Gold",960,"g/litre","(EC)","Yellow","K3"]
[null,"S-METOLACHLOR","Palladium 960",960,"g/litre","(EC)","Yellow","K3"]
[null,"S-METOLACHLOR","Tolla Super 960 EC",960,"g/litre","(EC)","Yellow","K3"]
[null,"METRIBUZIN","Sentak",480,"g/litre","(SC)","Yellow","C1"]
[null,"METRIBUZIN","Metribuzin 480 SC",480,"g/litre","(SC)","Yellow","C1"]
[null,"METRIBUZIN","GAP Metribuzin",480,"g/litre","(SC)","Yellow","C1"]
[null,"METRIBUZIN","Arysta Metribuzin 480",480,"g/litre","(SC)","Yellow","C1"]
[null,"METRIBUZIN","Metricane 700 WDG",700,"g/kg","(WGD)","Yellow","C1"]
[null,"METRIBUZIN","Amazon 480 SC",480,"g/litre","(SC)","Yellow","C1"]
[null,"METRIBUZIN","Mistral 700 WG",700,"g/kg","(WGD)","Yellow","C1"]
[null,"METRIBUZIN","Ag-Metribuzin",480,"g/litre","(SC)","Yellow","C1"]
[null,"METRIBUZIN","Metribuzin 75 WG",750,"g/kg","(WGD)","Yellow","C1"]
[null,"METRIBUZIN + CHLORIMURON-ETHYL","Extreme Plus","643+107","g/kg","(WGD)","Yellow","C1 + B"]
[null,"METRIBUZIN + CHLORIMURON-ETHYL","Imposter","643+107","g/kg","(WGD)","Yellow","C1 + B"]
[null,"METRIBUZIN + DIURON","Metrad","360+400","g/kg","(WGD)","Yellow","C1 + C2"]
[null,"MSMA","GAP MSMA",720,"g/litre","(SL)","Yellow","Z"]
[null,"MSMA","MSMA",720,"g/litre","(SL)","Yellow","Z"]
[null,"MSMA","MSMA SL",720,"g/litre","(SL)","Yellow","Z"]
[null,"MSMA","Arysta MSMA",720,"g/litre","(SL)","Yellow","Z"]
[null,"MSMA","Agromate",720,"g/litre","(SL)","Yellow","Z"]
[]
[]
[null,"ACTIVE INGREDIENT","TRADE NAME","AI STRENGTH","UNIT","FORMULATION","LABEL BAND","HRAC GROUP"]
[null,"PARAQUAT","Makhro Paraquat",200,"g/litre","(SL)","Yellow-Red","D"]
[null,"PARAQUAT","Agroquat 200",200,"g/litre","(SL)","Yellow-Red","D"]
[null,"PARAQUAT","Paraquat 200 SL",200,"g/litre","(SL)","Yellow-Red","D"]
[null,"PARAQUAT","Harpoon 200 SL",200,"g/litre","(SL)","Yellow-Red","D"]
[null,"PARAQUAT","Paragone SL",200,"g/litre","(SL)","Yellow-Red","D"]
[null,"PARAQUAT","GAP Paraquat",200,"g/litre","(SL)","Yellow-Red","D"]
[null,"PARAQUAT","Skoffle 145 SL",145,"g/litre","(SL)","Yellow-Red","D"]
[null,"PARAQUAT","Gramoxone",200,"g/litre","(SL)","Yellow-Red","D"]
[null,"PARAQUAT","Paraquat SL",200,"g/litre","(SL)","Yellow-Red","D"]
[null,"PARAQUAT","Skoffle 200 Super",200,"g/litre","(SL)","Yellow-Red","D"]
[null,"PARAQUAT","Arysta Paraquat",200,"g/litre","(SL)","Yellow-Red","D"]
[null,"PARAQUAT + DIURON","X-Tinct","450+50","g/litre","(SC)","Yellow-Red","D + C2"]
[null,"PARAQUAT + DIURON","Farmuron","100+300","g/litre","(SL)","Yellow-Red","D + C2"]
[null,"PARAQUAT + DIURON","Gramuron","100+300","g/litre","(SL)","Yellow-Red","D + C2"]
[null,"PARAQUAT + DIURON","Volmuron","100+300","g/litre","(SL)","Yellow-Red","D + C2"]
[null,"PENDIMETHALIN","Prowl",455,"g/litre","(CS)","Yellow","K1"]
[null,"PENDIMETHALIN","Pendimethalin 500 EC",500,"g/litre","(EC)","Yellow","K1"]
[null,"PENDIMETHALIN","Parabat 500 EC",500,"g/litre","(EC)","Yellow","K1"]
[null,"PENDIMETHALIN","Alligator 500 EC",500,"g/litre","(EC)","Yellow","K1"]
[null,"SAFLUFENACIL + DIMETHENAMID-P","Intelex",68,"g/litre","(EC)","Blue","E + K3"]
[null,"SULCOTRIONE + ATRAZINE","Armadillo","125+300","g/litre","(SC)","Yellow","F2 + C1"]
[null,"SULCOTRIONE + ATRAZINE","Shuttle 425 SC","125+300","g/litre","(SC)","Yellow","F2 + C1"]
[null,"SULFENTRAZONE","Preelect 750 WDG",750,"g/kg","(WDG)","Blue","E"]
[null,"SULFENTRAZONE","Avon 750 WDG",750,"g/kg","(WDG)","Blue","E"]
[null,"TEBUTHIURON","Tarantula 500 SC",500,"g/litre","(SC)","Yellow","C2"]
[null,"TEBUTHIURON","Teburox",500,"g/litre","(SC)","Yellow","C2"]
[null,"TEBUTHIURON","Tebusan 500 SC",500,"g/litre","(SC)","Yellow","C2"]
[null,"TEBUTHIURON","Arysta Lava 500 SC",500,"g/litre","(SC)","Yellow","C2"]
[null,"TEBUTHIURON","Lava 800  WDG",800,"g/kg","(WDG)","Yellow","C2"]

{"sheet":"VERSION","index":6,"n_rows":2,"n_cols":2,"rows_kept":2,"cut":false,"hidden":true,"merged":[]}
["Updated 21 January 2019","corrected Aventis Diuron Flo under Diuron to read 800 not 8000%"]
["Updated 19 July 2019","corrected spelling of FALLOW on CHOICES page"]